Document Date,Purchase Order No,Line Item No,Supplier ID,Supplier Name,Pro Class,Pro Class Description,Description of Goods (Purpose of expenditure look up),Service/Department   (SAP Hierarchy Position),Expense Area (cost centre desc),Net Order Value Over 5000.00 (line item value shown here),GL Code,Cost Centre/WBS
08/04/2021,ZAV690104,1,1162,RM Education plc,210000,Furniture & Soft Furnishings  ,Furniture and Equipment,Corporate and Support Services,IT AVA Non - SLA,"21,448.26",400105,13001
08/04/2021,ZAV690104,2,1162,RM Education plc,210000,Furniture & Soft Furnishings  ,Furniture and Equipment,Corporate and Support Services,IT AVA Non - SLA,12.00,400105,13001
09/04/2021,ZAV690200,1,4512,Redstor Limited,210000,Furniture & Soft Furnishings  ,Furniture and Equipment,Corporate and Support Services,IT AVA Service,"13,440.00",400105,11417
28/04/2021,ZAV691317,1,13068,addNetworks,210000,Furniture & Soft Furnishings  ,Furniture and Equipment,Corporate and Support Services,IT AVA Non - SLA,"5,920.00",400105,13001
28/04/2021,ZAV691317,2,13068,addNetworks,210000,Furniture & Soft Furnishings  ,Furniture and Equipment,Corporate and Support Services,IT AVA Non - SLA,"14,000.00",400105,13001
28/04/2021,ZAV691317,3,13068,addNetworks,210000,Furniture & Soft Furnishings  ,Furniture and Equipment,Corporate and Support Services,IT AVA Non - SLA,"2,070.00",400105,13001
29/04/2021,ZAV691382,1,10809,e-safe Global Limited,210000,Furniture & Soft Furnishings  ,Furniture and Equipment,Corporate and Support Services,IT AVA Non - SLA,"58,586.96",400105,13001
29/04/2021,ZAV691421,1,12402,VeryPC Ltd,181800,Environmental Services Technical Equipment ,Furniture and Equipment,Corporate and Support Services,IT AVA Non - SLA,"9,315.00",400110,13001
29/04/2021,ZAV691421,2,12402,VeryPC Ltd,181800,Environmental Services Technical Equipment ,Furniture and Equipment,Corporate and Support Services,IT AVA Non - SLA,924.00,400110,13001
29/04/2021,ZAV691421,3,12402,VeryPC Ltd,181800,Environmental Services Technical Equipment ,Furniture and Equipment,Corporate and Support Services,IT AVA Non - SLA,"1,870.66",400110,13001
04/05/2021,ZAV691522,1,1162,RM Education plc,181800,Environmental Services Technical Equipment ,Furniture and Equipment,Corporate and Support Services,IT AVA Service,"15,180.00",400110,11417
06/05/2021,ZAV691697,1,12351,Getech,270000,Information Communication Technology  ,Information and Communications Technology,Corporate and Support Services,IT AVA Non - SLA,"1,215.00",402001,13001
06/05/2021,ZAV691697,2,12351,Getech,270000,Information Communication Technology  ,Information and Communications Technology,Corporate and Support Services,IT AVA Non - SLA,"8,235.00",402001,13001
06/05/2021,ZAV691697,3,12351,Getech,270000,Information Communication Technology  ,Information and Communications Technology,Corporate and Support Services,IT AVA Non - SLA,675.00,402001,13001
06/05/2021,ZAV691697,4,12351,Getech,270000,Information Communication Technology  ,Information and Communications Technology,Corporate and Support Services,IT AVA Non - SLA,225.00,402001,13001
27/05/2021,ZAV692534,1,12351,Getech,181800,Environmental Services Technical Equipment ,Furniture and Equipment,Corporate and Support Services,IT AVA Non - SLA,810.00,400110,13001
27/05/2021,ZAV692534,2,12351,Getech,181800,Environmental Services Technical Equipment ,Furniture and Equipment,Corporate and Support Services,IT AVA Non - SLA,"5,490.00",400110,13001
27/05/2021,ZAV692534,3,12351,Getech,181800,Environmental Services Technical Equipment ,Furniture and Equipment,Corporate and Support Services,IT AVA Non - SLA,450.00,400110,13001
27/05/2021,ZAV692534,4,12351,Getech,181800,Environmental Services Technical Equipment ,Furniture and Equipment,Corporate and Support Services,IT AVA Non - SLA,150.00,400110,13001
27/05/2021,ZAV692534,5,12351,Getech,181800,Environmental Services Technical Equipment ,Furniture and Equipment,Corporate and Support Services,IT AVA Non - SLA,"1,120.00",400110,13001
01/06/2021,ZAV692691,1,12402,VeryPC Ltd,270000,Information Communication Technology  ,Information and Communications Technology,Corporate and Support Services,IT AVA Non - SLA,"8,100.00",402001,13001
01/06/2021,ZAV692691,2,12402,VeryPC Ltd,270000,Information Communication Technology  ,Information and Communications Technology,Corporate and Support Services,IT AVA Non - SLA,680.24,402001,13001
01/06/2021,ZAV692691,3,12402,VeryPC Ltd,270000,Information Communication Technology  ,Information and Communications Technology,Corporate and Support Services,IT AVA Non - SLA,"1,370.88",402001,13001
08/06/2021,ZAV693021,1,5535,Elementary Technology Ltd,210000,Furniture & Soft Furnishings  ,Furniture and Equipment,Corporate and Support Services,IT AVA Non - SLA,120.00,400105,13001
08/06/2021,ZAV693021,2,5535,Elementary Technology Ltd,210000,Furniture & Soft Furnishings  ,Furniture and Equipment,Corporate and Support Services,IT AVA Non - SLA,150.00,400105,13001
08/06/2021,ZAV693021,3,5535,Elementary Technology Ltd,210000,Furniture & Soft Furnishings  ,Furniture and Equipment,Corporate and Support Services,IT AVA Non - SLA,"4,998.00",400105,13001
08/06/2021,ZAV693021,4,5535,Elementary Technology Ltd,210000,Furniture & Soft Furnishings  ,Furniture and Equipment,Corporate and Support Services,IT AVA Non - SLA,"1,250.00",400105,13001
08/06/2021,ZAV693021,5,5535,Elementary Technology Ltd,210000,Furniture & Soft Furnishings  ,Furniture and Equipment,Corporate and Support Services,IT AVA Non - SLA,450.00,400105,13001
17/06/2021,ZAV693442,1,35,CBC Computer Systems Ltd,270000,Information Communication Technology  ,Information and Communications Technology,Corporate and Support Services,IT AVA Non - SLA,"11,070.00",402001,13001
17/06/2021,ZAV693442,2,35,CBC Computer Systems Ltd,270000,Information Communication Technology  ,Information and Communications Technology,Corporate and Support Services,IT AVA Non - SLA,585.00,402001,13001
25/06/2021,ZAV693765,1,1162,RM Education plc,210000,Furniture & Soft Furnishings  ,Furniture and Equipment,Corporate and Support Services,IT AVA Non - SLA,"38,493.80",400105,13001
25/06/2021,ZAV693765,2,1162,RM Education plc,210000,Furniture & Soft Furnishings  ,Furniture and Equipment,Corporate and Support Services,IT AVA Non - SLA,18.00,400105,13001
29/06/2021,ZAV693890,1,13068,addNetworks,210000,Furniture & Soft Furnishings  ,Furniture and Equipment,Corporate and Support Services,IT AVA Non - SLA,934.00,400105,13001
29/06/2021,ZAV693890,2,13068,addNetworks,210000,Furniture & Soft Furnishings  ,Furniture and Equipment,Corporate and Support Services,IT AVA Non - SLA,"11,700.00",400105,13001
29/06/2021,ZAV693890,3,13068,addNetworks,210000,Furniture & Soft Furnishings  ,Furniture and Equipment,Corporate and Support Services,IT AVA Non - SLA,"1,380.00",400105,13001
08/04/2021,ZES690003,1,12602,The Networking People (TNP) Lt,270000,Information Communication Technology  ,Information and Communications Technology,Corporate and Support Services,IT Infrastructure,"7,114.00",402002,11324
09/04/2021,ZES690197,1,7753,Netcall Technology Limited,270000,Information Communication Technology  ,Information and Communications Technology,Corporate and Support Services,IT Infrastructure,"51,750.00",402002,11324
14/04/2021,ZES690541,1,4799,Aligned Assets Limited,270000,Information Communication Technology  ,Information and Communications Technology,Corporate and Support Services,Spatial Intelligence,"2,577.74",402001,11973
14/04/2021,ZES690541,2,4799,Aligned Assets Limited,270000,Information Communication Technology  ,Information and Communications Technology,Corporate and Support Services,Spatial Intelligence,"5,741.61",402001,11973
14/04/2021,ZES690541,3,4799,Aligned Assets Limited,270000,Information Communication Technology  ,Information and Communications Technology,Corporate and Support Services,Spatial Intelligence,"1,400.78",402001,11973
21/04/2021,ZES691031,1,2927,XMA Ltd,270000,Information Communication Technology  ,Information and Communications Technology,Corporate and Support Services,IT Infrastructure,"10,706.25",402002,11324
04/05/2021,ZES691513,1,544,Phoenix Software Ltd,270000,Information Communication Technology  ,Information and Communications Technology,Corporate and Support Services,IT Microsoft,"6,180.00",402001,13091
14/06/2021,ZES693239,1,544,Phoenix Software Ltd,270000,Information Communication Technology  ,Information and Communications Technology,Corporate and Support Services,IT Microsoft,"4,869.00",402001,13091
14/06/2021,ZES693239,2,544,Phoenix Software Ltd,270000,Information Communication Technology  ,Information and Communications Technology,Corporate and Support Services,IT Microsoft,"7,323.00",402001,13091
25/06/2021,ZES693763,1,28,Bechtle Direct Ltd,210000,Furniture & Soft Furnishings  ,Furniture and Equipment,Corporate and Support Services,IT AVA Non - SLA,"7,515.50",400105,13001
25/06/2021,ZES693763,2,28,Bechtle Direct Ltd,210000,Furniture & Soft Furnishings  ,Furniture and Equipment,Corporate and Support Services,IT AVA Non - SLA,"2,022.10",400105,13001
25/06/2021,ZES693763,3,28,Bechtle Direct Ltd,210000,Furniture & Soft Furnishings  ,Furniture and Equipment,Corporate and Support Services,IT AVA Non - SLA,9.95,400105,13001
08/04/2021,ZFC690147,1,1799,Stockport Homes,999999,Fees and Charges,Fees and Charges,Services to Place,SPB Operational Est.,"13,791.00",401035,11662
13/04/2021,ZFC690435,1,1799,Stockport Homes,390000,"Works - Construction, Repair & Maintenance  ",Repairs and Maintenance,Services to Place,SPB Operational Est.,"5,315.03",200124,11662
13/04/2021,ZFC690436,1,1799,Stockport Homes,370000,Utilities   ,Utilities,Services to Place,SPB Operational Est.,"30,000.00",200520,11662
06/05/2021,ZFC691694,1,3529,Totally Local Company Ltd,390000,"Works - Construction, Repair & Maintenance  ",Repairs and Maintenance,Services to Place,SPB Operational Est.,"7,000.00",200101,11662
11/05/2021,ZFC691856,1,3529,Totally Local Company Ltd,240000,Horticultural  ,Grounds Maintenance,Services to Place,SPB - Investment Est,"48,500.88",202030,10062
11/05/2021,ZFC691857,1,4482,Waste Solutions SK Ltd,182000,Environmental Services Waste Management ,Waste Management,Services to Place,SPB Operational Est.,"47,699.39",201804,11662
11/05/2021,ZFC691858,1,3529,Totally Local Company Ltd,240000,Horticultural  ,Grounds Maintenance,Services to Place,SPB Operational Est.,"16,589.62",202030,11662
25/05/2021,ZFC692471,1,3529,Totally Local Company Ltd,390000,"Works - Construction, Repair & Maintenance  ",Repairs and Maintenance,Services to Place,SPB Operational Est.,"43,334.17",200159,11662
25/05/2021,ZFC692471,2,3529,Totally Local Company Ltd,192200,Facilities & Management Services Security ,Security,Services to Place,SPB Operational Est.,"13,635.00",201206,11662
25/05/2021,ZFC692471,3,3529,Totally Local Company Ltd,390000,"Works - Construction, Repair & Maintenance  ",Repairs and Maintenance,Services to Place,SPB Operational Est.,"58,663.26",200106,11662
25/05/2021,ZFC692471,4,3529,Totally Local Company Ltd,390000,"Works - Construction, Repair & Maintenance  ",Repairs and Maintenance,Services to Place,SPB Operational Est.,"50,855.35",200159,11662
25/05/2021,ZFC692473,1,3529,Totally Local Company Ltd,130000,Cleaning & Janitorial  ,Cleaning,Services to Place,SPB Operational Est.,"830,559.79",201602,11662
27/05/2021,ZFC692539,1,8832,Safe and Secure Solutions Ltd,390000,"Works - Construction, Repair & Maintenance  ",Repairs and Maintenance,Services to Place,SPB Operational Est.,"5,460.00",200160,11662
08/04/2021,ZHS690041,1,12300,Markhams Limited,390000,"Works - Construction, Repair & Maintenance  ",Capital Expenditure - Works,#N/A,#N/A,"11,204.04",200311,C.10951.002
27/04/2021,ZHS691291,1,13541,PRP Architects LLP.,390000,"Works - Construction, Repair & Maintenance  ",Capital Expenditure - Works,#N/A,#N/A,"20,000.00",200311,C.10945.002
27/04/2021,ZHS691303,1,13541,PRP Architects LLP.,390000,"Works - Construction, Repair & Maintenance  ",Capital Expenditure - Works,#N/A,#N/A,"40,643.14",200311,C.10945.002
29/04/2021,ZSA691420,1,3529,Totally Local Company Ltd,130000,Cleaning & Janitorial  ,Cleaning,Services to People,Redcroft Residential,"6,500.00",201602,11675
05/05/2021,ZSA691618,1,3664,Main and Main,202000,Financial Services Rents ,Rents,Services to People,Queensway,"10,175.00",200700,11695
12/05/2021,ZSA691960,1,5892,Groundwork Greater Manchester,#N/A,#N/A,#N/A,Services to People,PH-Test & Trace,"20,000.00",200999,13080
02/06/2021,ZSA692778,1,9850,Great Places Housing Group,202000,Financial Services Rents ,Rents,Services to People,Millview Respite,"22,781.64",200700,11033
17/06/2021,ZSA693422,1,2243,Scan Mobility Ltd,#N/A,#N/A,#N/A,Services to People,Ld Tenancies Managmt,"6,627.00",400999,11047
17/06/2021,ZSA693422,2,2243,Scan Mobility Ltd,#N/A,#N/A,#N/A,Services to People,Ld Tenancies Managmt,52.00,400999,11047
17/06/2021,ZSA693422,3,2243,Scan Mobility Ltd,#N/A,#N/A,#N/A,Services to People,Ld Tenancies Managmt,593.85,400999,11047
17/06/2021,ZSA693422,4,2243,Scan Mobility Ltd,#N/A,#N/A,#N/A,Services to People,Ld Tenancies Managmt,859.47,400999,11047
17/06/2021,ZSA693422,5,2243,Scan Mobility Ltd,#N/A,#N/A,#N/A,Services to People,Ld Tenancies Managmt,300.00,400999,11047
28/04/2021,ZSB691333,1,13261,McCoy Perimeter Security UK Lt,390000,"Works - Construction, Repair & Maintenance  ",Repairs and Maintenance,Services to People,Highfields PRU,"2,660.10",200123,10329
28/04/2021,ZSB691333,2,13261,McCoy Perimeter Security UK Lt,390000,"Works - Construction, Repair & Maintenance  ",Repairs and Maintenance,Services to People,Highfields PRU,"2,868.28",200123,10329
27/05/2021,ZSB692560,1,1799,Stockport Homes,390000,"Works - Construction, Repair & Maintenance  ",Repairs and Maintenance,Services to People,Highfields PRU,560.00,200123,10329
27/05/2021,ZSB692560,2,1799,Stockport Homes,390000,"Works - Construction, Repair & Maintenance  ",Repairs and Maintenance,Services to People,Highfields PRU,"3,710.00",200123,10329
27/05/2021,ZSB692560,3,1799,Stockport Homes,390000,"Works - Construction, Repair & Maintenance  ",Repairs and Maintenance,Services to People,Highfields PRU,169.95,200123,10329
27/05/2021,ZSB692560,4,1799,Stockport Homes,390000,"Works - Construction, Repair & Maintenance  ",Repairs and Maintenance,Services to People,Highfields PRU,867.00,200123,10329
27/05/2021,ZSB692560,5,1799,Stockport Homes,390000,"Works - Construction, Repair & Maintenance  ",Repairs and Maintenance,Services to People,Highfields PRU,419.52,200123,10329
27/05/2021,ZSB692560,6,1799,Stockport Homes,390000,"Works - Construction, Repair & Maintenance  ",Repairs and Maintenance,Services to People,Highfields PRU,44.00,200123,10329
27/05/2021,ZSB692560,7,1799,Stockport Homes,390000,"Works - Construction, Repair & Maintenance  ",Repairs and Maintenance,Services to People,Highfields PRU,88.55,200123,10329
27/05/2021,ZSB692560,8,1799,Stockport Homes,390000,"Works - Construction, Repair & Maintenance  ",Repairs and Maintenance,Services to People,Highfields PRU,196.00,200123,10329
15/06/2021,ZSB693327,1,14055,Stockport CCTV,390000,"Works - Construction, Repair & Maintenance  ",Repairs and Maintenance,Services to People,Highfields PRU,"6,078.00",200160,10329
16/06/2021,ZSB693357,1,1799,Stockport Homes,390000,"Works - Construction, Repair & Maintenance  ",Repairs and Maintenance,Services to People,Highfields PRU,894.30,200123,10329
16/06/2021,ZSB693357,2,1799,Stockport Homes,390000,"Works - Construction, Repair & Maintenance  ",Repairs and Maintenance,Services to People,Highfields PRU,"7,184.48",200123,10329
20/05/2021,ZTR692305,1,9494,Patrol - Parking Charges,200000,Financial Services  ,Fees and Charges,Services to Place,Car Parks Admin,"8,000.00",402401,10005
08/04/2021,ZZC690126,1,3483,Active Security Systems Ltd,192200,Facilities & Management Services Security ,Security,Services to People,RAA Adoption Count,"5,415.00",201204,12957
08/04/2021,ZZC690140,1,12675,Tiptoes Child Therapy Services,999999,Fees and Charges,Fees and Charges,Services to People,RAA - ASF Grant,"12,280.00",401035,12968
08/04/2021,ZZC690150,1,12675,Tiptoes Child Therapy Services,999999,Fees and Charges,Fees and Charges,Services to People,RAA - ASF Grant,"10,000.00",401035,12968
12/04/2021,ZZC690258,1,12675,Tiptoes Child Therapy Services,999999,Fees and Charges,Fees and Charges,Services to People,RAA - ASF Grant,"5,000.00",401035,12968
12/04/2021,ZZC690259,1,12675,Tiptoes Child Therapy Services,999999,Fees and Charges,Fees and Charges,Services to People,RAA - ASF Grant,"5,000.00",401035,12968
14/04/2021,ZZC690571,1,1756,CoramBAAF,390000,"Works - Construction, Repair & Maintenance  ",Fees and Charges,Services to People,RAA Adoption Count,"6,876.60",401017,12957
14/04/2021,ZZC690572,1,12675,Tiptoes Child Therapy Services,999999,Fees and Charges,Fees and Charges,Services to People,RAA - ASF Grant,"5,000.00",401035,12968
15/04/2021,ZZC690610,1,12675,Tiptoes Child Therapy Services,999999,Fees and Charges,Fees and Charges,Services to People,RAA - ASF Grant,"10,000.00",401035,12968
15/04/2021,ZZC690611,1,12675,Tiptoes Child Therapy Services,999999,Fees and Charges,Fees and Charges,Services to People,RAA - ASF Grant,"5,000.00",401035,12968
20/04/2021,ZZC690906,1,11722,TheBigWord Interpreting Svcs L,261100,Human Resources Interpretation & Translation ,Professional Fees,Services to People,Incl - S.I.U - Perip,"100,000.00",401023,10307
26/04/2021,ZZC691158,1,12723,Chrysalis Associates Ltd,999999,Fees and Charges,Fees and Charges,Services to People,RAA - ASF Grant,"5,000.00",401035,12968
28/04/2021,ZZC691346,1,14638,Barnardo Services Ltd,#N/A,#N/A,#N/A,Services to People,RAA - ASF Grant,"12,853.06",400999,12968
28/04/2021,ZZC691347,1,12675,Tiptoes Child Therapy Services,999999,Fees and Charges,Fees and Charges,Services to People,RAA - ASF Grant,"5,000.00",401035,12968
28/04/2021,ZZC691348,1,12675,Tiptoes Child Therapy Services,999999,Fees and Charges,Fees and Charges,Services to People,RAA - ASF Grant,"5,000.00",401035,12968
29/04/2021,ZZC691381,1,12675,Tiptoes Child Therapy Services,999999,Fees and Charges,Fees and Charges,Services to People,RAA - ASF Grant,"5,000.00",401035,12968
29/04/2021,ZZC691409,1,8766,ADOPTION MATTERS NORTHWEST,999999,Fees and Charges,Fees and Charges,Services to People,RAA - ASF Grant,"9,813.83",401035,12968
30/04/2021,ZZC691500,1,1756,CoramBAAF,200000,Financial Services  ,Fees and Charges,Services to People,RAA Adoption Count,"11,266.07",402401,12957
04/05/2021,ZZC691515,1,12298,One Education Ltd,150000,Consultancy   ,Professional Fees,Services to People,RAA - Ctr Excellence,"62,905.00",401020,12967
04/05/2021,ZZC691588,1,8766,ADOPTION MATTERS NORTHWEST,999999,Fees and Charges,Fees and Charges,Services to People,RAA - ASF Grant,"7,686.00",401035,12968
07/05/2021,ZZC691745,1,12298,One Education Ltd,999999,Fees and Charges,Fees and Charges,Services to People,RAA - ASF Grant,"5,000.00",401035,12968
14/05/2021,ZZC692070,1,12675,Tiptoes Child Therapy Services,999999,Fees and Charges,Fees and Charges,Services to People,RAA - ASF Grant,"5,000.00",401035,12968
14/05/2021,ZZC692071,1,13084,CORAM,320000,Social Community Care Supplies & Services  ,Care Payments,Services to People,RAA Adoption Count,"35,552.00",530306,12957
14/05/2021,ZZC692073,1,12675,Tiptoes Child Therapy Services,999999,Fees and Charges,Fees and Charges,Services to People,RAA - ASF Grant,"19,740.00",401035,12968
14/05/2021,ZZC692074,1,13020,Intraquest Limited,999999,Fees and Charges,Fees and Charges,Services to People,RAA - ASF Grant,"5,022.00",401035,12968
14/05/2021,ZZC692075,1,12675,Tiptoes Child Therapy Services,999999,Fees and Charges,Fees and Charges,Services to People,RAA - ASF Grant,"5,000.00",401035,12968
20/05/2021,ZZC692300,1,5423,WILTSHIRE COUNTY COUNCIL,320000,Social Community Care Supplies & Services  ,Care Payments,Services to People,RAA Adoption Count,"27,000.00",530306,12957
21/05/2021,ZZC692310,1,12675,Tiptoes Child Therapy Services,999999,Fees and Charges,Fees and Charges,Services to People,RAA - ASF Grant,"5,000.00",401035,12968
21/05/2021,ZZC692340,1,8881,Family Futures CIC,999999,Fees and Charges,Fees and Charges,Services to People,RAA - ASF Grant,"46,590.00",401035,12968
21/05/2021,ZZC692343,1,12298,One Education Ltd,999999,Fees and Charges,Fees and Charges,Services to People,RAA - ASF Grant,"5,000.00",401035,12968
21/05/2021,ZZC692344,1,12675,Tiptoes Child Therapy Services,999999,Fees and Charges,Fees and Charges,Services to People,RAA - ASF Grant,"12,670.00",401035,12968
26/05/2021,ZZC692499,1,2816,The Fostering Network,150000,Consultancy   ,Professional Fees,Services to People,FP - Fostering Staff,"7,689.44",401020,11489
27/05/2021,ZZC692567,1,12675,Tiptoes Child Therapy Services,999999,Fees and Charges,Fees and Charges,Services to People,RAA - ASF Grant,"5,000.00",401035,12968
27/05/2021,ZZC692569,1,14450,Great Minds Together CIC,999999,Fees and Charges,Fees and Charges,Services to People,RAA - ASF Grant,"5,000.00",401035,12968
01/06/2021,ZZC692730,1,12675,Tiptoes Child Therapy Services,999999,Fees and Charges,Fees and Charges,Services to People,RAA - ASF Grant,"12,000.00",401035,12968
02/06/2021,ZZC692769,1,11417,Parents and Children Together,150000,Consultancy   ,Professional Fees,Services to People,RAA Adoption Count,"16,500.00",401020,12957
02/06/2021,ZZC692774,1,12675,Tiptoes Child Therapy Services,999999,Fees and Charges,Fees and Charges,Services to People,RAA - ASF Grant,"5,000.00",401035,12968
03/06/2021,ZZC692823,1,12298,One Education Ltd,150000,Consultancy   ,Professional Fees,Services to People,FP - Special Guardia,"5,000.00",401007,13012
04/06/2021,ZZC692880,1,9891,Link Maker Systems Ltd.,390000,"Works - Construction, Repair & Maintenance  ",Fees and Charges,Services to People,RAA Adoption Count,"40,416.80",401017,12957
22/06/2021,ZZC693622,1,12675,Tiptoes Child Therapy Services,999999,Fees and Charges,Fees and Charges,Services to People,RAA - ASF Grant,"5,000.00",401035,12968
22/06/2021,ZZC693623,1,12775,Daydawn Therapeutic Services,999999,Fees and Charges,Fees and Charges,Services to People,RAA - ASF Grant,"5,130.00",401035,12968
22/06/2021,ZZC693624,1,3292,Reach Publishing Services Ltd,190000,Facilities & Management Services  ,Office Expenses,Services to People,RAA Adoption Count,"15,000.00",400700,12957
22/06/2021,ZZC693628,1,12675,Tiptoes Child Therapy Services,999999,Fees and Charges,Fees and Charges,Services to People,RAA - ASF Grant,"10,000.00",401035,12968
23/06/2021,ZZC693666,1,8249,Creative Concern Ltd,190000,Facilities & Management Services  ,Office Expenses,Services to People,RAA Adoption Count,"15,370.00",400700,12957
29/06/2021,ZZC693904,1,12646,Child in Mind Ltd,999999,Fees and Charges,Fees and Charges,Services to People,RAA - ASF Grant,"6,120.00",401035,12968
29/06/2021,ZZC693905,1,12706,NEW ROOTS THERAPY NW,999999,Fees and Charges,Fees and Charges,Services to People,RAA - ASF Grant,"5,300.00",401035,12968
29/06/2021,ZZC693906,1,14703,Dr Billy Smythe Ltd,260000,Human Resources  ,Staff Training,Services to People,RAA Adoption Count,"5,580.00",102020,12957
29/06/2021,ZZC693911,1,12106,KMS Media,190000,Facilities & Management Services  ,Office Expenses,Services to People,RAA Adoption Count,"10,796.20",400700,12957
06/04/2021,ZZH689904,1,1644,Tameside MBC,390000,"Works - Construction, Repair & Maintenance  ",Fees and Charges,Services to Place,Neighbourhoods Team,"1,000.00",401015,10900
06/04/2021,ZZH689904,2,1644,Tameside MBC,390000,"Works - Construction, Repair & Maintenance  ",Fees and Charges,Corporate and Support Services,Bentax,"1,000.00",401015,11139
06/04/2021,ZZH689904,3,1644,Tameside MBC,390000,"Works - Construction, Repair & Maintenance  ",Fees and Charges,Corporate and Support Services,Bentax,"25,000.00",401015,11139
06/04/2021,ZZH689912,1,13839,Optimum Groundworks,240000,Horticultural  ,Grounds Maintenance,Services to Place,Highfield Cemetery,"1,500.00",202030,11282
06/04/2021,ZZH689912,2,13839,Optimum Groundworks,240000,Horticultural  ,Grounds Maintenance,Services to Place,Highfield Cemetery,900.00,202030,11282
06/04/2021,ZZH689912,3,13839,Optimum Groundworks,240000,Horticultural  ,Grounds Maintenance,Services to Place,Highfield Cemetery,"1,140.00",202030,11282
06/04/2021,ZZH689912,4,13839,Optimum Groundworks,240000,Horticultural  ,Grounds Maintenance,Services to Place,Highfield Cemetery,900.00,202030,11282
06/04/2021,ZZH689912,5,13839,Optimum Groundworks,240000,Horticultural  ,Grounds Maintenance,Services to Place,Highfield Cemetery,"2,700.00",202030,11282
06/04/2021,ZZH689924,1,10841,Whistl UK Limited,300000,Mail Services�  ,Office Expenses,Corporate and Support Services,Mailroom Service,"37,500.00",400711,11152
06/04/2021,ZZH689925,1,3290,Royal Mail,300000,Mail Services�  ,Office Expenses,Corporate and Support Services,Mailroom Service,"25,000.00",400711,11152
07/04/2021,ZZH689972,1,13393,Valtech Limited,390000,"Works - Construction, Repair & Maintenance  ",Fees and Charges,Corporate and Support Services,Driver Assessment,"7,000.00",401017,11113
07/04/2021,ZZH689976,1,14011,Baltimore Consulting,261400,Human Resources Temporary & Agency Staff ,Agency Staff,Services to People,LDSS SS Manager,"20,000.00",100290,13070
07/04/2021,ZZH689977,1,2632,Concept Elevators NW Ltd,390000,"Works - Construction, Repair & Maintenance  ",Repairs and Maintenance,Services to People,Dis Svce:Domest Lift,"43,000.00",200125,11660
07/04/2021,ZZH689978,1,4369,Pennine Care NHS Trust,999999,UNCLASSIFIED  ,MISCLASSIFIED? CHECK BEFORE PUBLICATION,Services to People,LD Health Staff,"905,000.00",100115,12674
07/04/2021,ZZH689979,1,13874,HUMAN SUPPORT GROUP LTD,320000,Social Community Care Supplies & Services  ,Care Payments,Services to People,Heald Green ECH,"220,000.00",530332,13051
07/04/2021,ZZH689980,1,13884,Crossroads Together,320000,Social Community Care Supplies & Services  ,Care Payments,Services to People,Edgeley ECH,"394,000.00",530332,13049
07/04/2021,ZZH689981,1,13884,Crossroads Together,320000,Social Community Care Supplies & Services  ,Care Payments,Services to People,Marple ECH,"206,000.00",530332,13050
07/04/2021,ZZH689982,1,4617,Creative Support Ltd,320000,Social Community Care Supplies & Services  ,Care Payments,Services to People,Reddish ECH,"328,000.00",530332,13048
07/04/2021,ZZH689986,1,14349,madlab,320000,Social Community Care Supplies & Services  ,Care Payments,Corporate and Support Services,POD Workforce Dev,"15,000.00",530356,11888
07/04/2021,ZZH689989,1,3529,Totally Local Company Ltd,181800,Environmental Services Technical Equipment ,Furniture and Equipment,Corporate and Support Services,Local Election,"24,750.00",400110,12102
07/04/2021,ZZH690000,1,8202,The Fountain Company Ltd,390000,"Works - Construction, Repair & Maintenance  ",Repairs and Maintenance,Services to Place,St Peter's Square,"20,000.00",200126,11979
07/04/2021,ZZH690002,1,6138,Equisys Timemaster Ltd,270000,Information Communication Technology  ,Information and Communications Technology,Services to Place,D & I Team,"10,596.12",402001,11960
08/04/2021,ZZH690009,1,1669,Charnwood Nursery,261500,Human Resources Training & Conferences ,Fees and Charges,Services to People,SEN Independent Sch,"5,922.64",401024,10372
08/04/2021,ZZH690010,1,10985,Broadstones School Ltd,261500,Human Resources Training & Conferences ,Fees and Charges,Services to People,SEN Independent Sch,"11,333.33",401024,10372
08/04/2021,ZZH690011,1,10985,Broadstones School Ltd,261500,Human Resources Training & Conferences ,Fees and Charges,Services to People,SEN Independent Sch,"11,333.33",401024,10372
08/04/2021,ZZH690012,1,10985,Broadstones School Ltd,261500,Human Resources Training & Conferences ,Fees and Charges,Services to People,SEN Independent Sch,"11,333.33",401024,10372
08/04/2021,ZZH690013,1,10985,Broadstones School Ltd,261500,Human Resources Training & Conferences ,Fees and Charges,Services to People,SEN Independent Sch,"39,000.00",401024,10372
08/04/2021,ZZH690014,1,10985,Broadstones School Ltd,261500,Human Resources Training & Conferences ,Fees and Charges,Services to People,SEN Independent Sch,"11,333.33",401024,10372
08/04/2021,ZZH690015,1,10985,Broadstones School Ltd,261500,Human Resources Training & Conferences ,Fees and Charges,Services to People,SEN Independent Sch,"34,000.00",401024,10372
08/04/2021,ZZH690016,1,10985,Broadstones School Ltd,261500,Human Resources Training & Conferences ,Fees and Charges,Services to People,SEN Independent Sch,"34,000.00",401024,10372
08/04/2021,ZZH690017,1,1669,Charnwood Nursery,261500,Human Resources Training & Conferences ,Fees and Charges,Services to People,SEN Independent Sch,"5,922.64",401024,10372
08/04/2021,ZZH690018,1,10985,Broadstones School Ltd,261500,Human Resources Training & Conferences ,Fees and Charges,Services to People,SEN Independent Sch,"11,333.33",401024,10372
08/04/2021,ZZH690019,1,10985,Broadstones School Ltd,261500,Human Resources Training & Conferences ,Fees and Charges,Services to People,SEN Independent Sch,"39,000.00",401024,10372
08/04/2021,ZZH690020,1,10985,Broadstones School Ltd,261500,Human Resources Training & Conferences ,Fees and Charges,Services to People,SEN Independent Sch,"11,333.33",401024,10372
08/04/2021,ZZH690021,1,12367,Beech Hall School,261500,Human Resources Training & Conferences ,Fees and Charges,Services to People,SEN Independent Sch,"17,460.00",401024,10372
08/04/2021,ZZH690022,1,12367,Beech Hall School,261500,Human Resources Training & Conferences ,Fees and Charges,Services to People,SEN Independent Sch,"37,224.00",401024,10372
08/04/2021,ZZH690024,1,12367,Beech Hall School,261500,Human Resources Training & Conferences ,Fees and Charges,Services to People,SEN Independent Sch,"26,640.00",401024,10372
08/04/2021,ZZH690025,1,12367,Beech Hall School,261500,Human Resources Training & Conferences ,Fees and Charges,Services to People,SEN Independent Sch,"28,590.00",401024,10372
08/04/2021,ZZH690027,1,12367,Beech Hall School,261500,Human Resources Training & Conferences ,Fees and Charges,Services to People,SEN Independent Sch,"26,640.00",401024,10372
08/04/2021,ZZH690028,1,12367,Beech Hall School,261500,Human Resources Training & Conferences ,Fees and Charges,Services to People,SEN Independent Sch,"16,203.13",401024,10372
08/04/2021,ZZH690029,1,1722,The Together Trust Centre,261500,Human Resources Training & Conferences ,Fees and Charges,Services to People,SEN Independent Sch,"39,451.02",401024,10372
08/04/2021,ZZH690030,1,1722,The Together Trust Centre,261500,Human Resources Training & Conferences ,Fees and Charges,Services to People,SEN Independent Sch,"42,000.00",401024,10372
08/04/2021,ZZH690031,1,1669,Charnwood Nursery,261500,Human Resources Training & Conferences ,Fees and Charges,Services to People,SEN Independent Sch,"5,922.64",401024,10372
08/04/2021,ZZH690032,1,1722,The Together Trust Centre,261500,Human Resources Training & Conferences ,Fees and Charges,Services to People,SEN Independent Sch,"38,302.02",401024,10372
08/04/2021,ZZH690033,1,1722,The Together Trust Centre,261500,Human Resources Training & Conferences ,Fees and Charges,Services to People,SEN Independent Sch,"42,761.25",401024,10372
08/04/2021,ZZH690034,1,1722,The Together Trust Centre,261500,Human Resources Training & Conferences ,Fees and Charges,Services to People,SEN Independent Sch,"12,564.57",401024,10372
08/04/2021,ZZH690035,1,1722,The Together Trust Centre,261500,Human Resources Training & Conferences ,Fees and Charges,Services to People,SEN Independent Sch,"18,902.50",401024,10372
08/04/2021,ZZH690036,1,1722,The Together Trust Centre,261500,Human Resources Training & Conferences ,Fees and Charges,Services to People,SEN Independent Sch,"12,098.56",401024,10372
08/04/2021,ZZH690037,1,1722,The Together Trust Centre,261500,Human Resources Training & Conferences ,Fees and Charges,Services to People,SEN Independent Sch,"44,045.01",401024,10372
08/04/2021,ZZH690038,1,1722,The Together Trust Centre,261500,Human Resources Training & Conferences ,Fees and Charges,Services to People,SEN Independent Sch,"44,045.01",401024,10372
08/04/2021,ZZH690039,1,1722,The Together Trust Centre,261500,Human Resources Training & Conferences ,Fees and Charges,Services to People,SEN Independent Sch,"40,634.34",401024,10372
08/04/2021,ZZH690042,1,1722,The Together Trust Centre,261500,Human Resources Training & Conferences ,Fees and Charges,Services to People,SEN Independent Sch,"45,366.36",401024,10372
08/04/2021,ZZH690044,1,1722,The Together Trust Centre,261500,Human Resources Training & Conferences ,Fees and Charges,Services to People,SEN Independent Sch,"37,694.02",401024,10372
08/04/2021,ZZH690045,1,1722,The Together Trust Centre,261500,Human Resources Training & Conferences ,Fees and Charges,Services to People,SEN Independent Sch,"38,302.02",401024,10372
08/04/2021,ZZH690046,1,1722,The Together Trust Centre,261500,Human Resources Training & Conferences ,Fees and Charges,Services to People,SEN Independent Sch,"44,045.01",401024,10372
08/04/2021,ZZH690047,1,1722,The Together Trust Centre,261500,Human Resources Training & Conferences ,Fees and Charges,Services to People,SEN Independent Sch,"41,274.84",401024,10372
08/04/2021,ZZH690049,1,14243,Keys PCE Ltd,261500,Human Resources Training & Conferences ,Fees and Charges,Services to People,SEN Independent Sch,"40,950.00",401024,10372
08/04/2021,ZZH690050,1,14243,Keys PCE Ltd,261500,Human Resources Training & Conferences ,Fees and Charges,Services to People,SEN Independent Sch,"40,950.00",401024,10372
08/04/2021,ZZH690051,1,1669,Charnwood Nursery,261500,Human Resources Training & Conferences ,Fees and Charges,Services to People,SEN Independent Sch,"5,922.64",401024,10372
08/04/2021,ZZH690052,1,14243,Keys PCE Ltd,261500,Human Resources Training & Conferences ,Fees and Charges,Services to People,SEN Independent Sch,"40,950.00",401024,10372
08/04/2021,ZZH690053,1,14243,Keys PCE Ltd,261500,Human Resources Training & Conferences ,Fees and Charges,Services to People,SEN Independent Sch,"40,950.00",401024,10372
08/04/2021,ZZH690054,1,14243,Keys PCE Ltd,261500,Human Resources Training & Conferences ,Fees and Charges,Services to People,SEN Independent Sch,"40,950.00",401024,10372
08/04/2021,ZZH690055,1,14243,Keys PCE Ltd,261500,Human Resources Training & Conferences ,Fees and Charges,Services to People,SEN Independent Sch,"40,950.00",401024,10372
08/04/2021,ZZH690056,1,1669,Charnwood Nursery,261500,Human Resources Training & Conferences ,Fees and Charges,Services to People,SEN Independent Sch,"5,922.64",401024,10372
08/04/2021,ZZH690057,1,14243,Keys PCE Ltd,261500,Human Resources Training & Conferences ,Fees and Charges,Services to People,SEN Independent Sch,"37,050.00",401024,10372
08/04/2021,ZZH690077,1,12401,NSL Ltd,270000,Information Communication Technology  ,Information and Communications Technology,Services to Place,Car Parks Admin,"11,500.00",402001,10005
08/04/2021,ZZH690083,1,11258,Hapus LTD,150000,Consultancy   ,Professional Fees,Services to People,Domestic Abuse Bill,"8,800.00",401020,13111
08/04/2021,ZZH690091,1,7166,THE DARTINGTON HALL TRUST,150000,Consultancy   ,Professional Fees,Services to People,WD-Staff Dev-Grants,"10,782.00",401020,12202
08/04/2021,ZZH690092,1,10678,DV Servelec Education Ltd,270000,Information Communication Technology  ,Information and Communications Technology,Corporate and Support Services,I.T Business Relat,"11,791.71",402002,13044
08/04/2021,ZZH690094,1,11058,Stockport Town Centre Business,210000,Furniture & Soft Furnishings  ,Furniture and Equipment,Services to Place,Directorate,"25,211.00",400100,10106
08/04/2021,ZZH690105,1,14325,Ivanti UK Limited,270000,Information Communication Technology  ,Information and Communications Technology,Corporate and Support Services,IT Infrastructure,"7,759.80",402002,11324
08/04/2021,ZZH690105,2,14325,Ivanti UK Limited,270000,Information Communication Technology  ,Information and Communications Technology,Corporate and Support Services,IT Infrastructure,"4,311.00",402002,11324
08/04/2021,ZZH690106,1,11962,PROQUEST INFORMATION & LEARNIN,171113,Education Library Books ,Library Equipment,Corporate and Support Services,Library Dev & Res,"6,662.66",400202,11328
08/04/2021,ZZH690122,1,3707,Salford City Council/Finance,999999,Social Community Care Supplies & Services  ,Service Contract Payments,Services to People,PH-Sexual Health,"8,399.00",561704,12736
09/04/2021,ZZH690177,1,13860,Howard Lynn Property Ltd,261400,Human Resources Temporary & Agency Staff ,Agency Staff,Services to Place,Property Client Acct,"7,087.50",100290,12328
09/04/2021,ZZH690180,1,3529,Totally Local Company Ltd,390000,Supplies and services,Supplies and services,#N/A,#N/A,"7,369.00",401600,C.00718.203
09/04/2021,ZZH690182,1,7820,GMCA - GMUTC,391200,"Works - Construction, Repair & Maintenance Engineering ",Professional Fees,#N/A,#N/A,"27,175.14",401032,C.01270.201
09/04/2021,ZZH690206,1,757,Transport for Greater Manchest,230000,Highway Equipment & Materials�   ,Highways Maintenance,#N/A,#N/A,"40,803.36",202054,C.01368.203
12/04/2021,ZZH690218,1,12193,Greater Manchester Combined Au,#N/A,#N/A,#N/A,Corporate and Support Services,AGMA & LA Subs,"9,730.00",400999,10979
12/04/2021,ZZH690219,1,12193,Greater Manchester Combined Au,202100,Financial Services Subscriptions ,Third party payments - Public Sector,Corporate and Support Services,AGMA & LA Subs,"180,000.00",500305,10979
12/04/2021,ZZH690221,1,2973,CIPFA,171113,Education Library Books ,Library Equipment,Corporate and Support Services,Financial Accountanc,"6,400.00",400202,12873
12/04/2021,ZZH690222,1,2973,CIPFA,200000,Financial Services  ,Fees and Charges,Corporate and Support Services,Financial Accountanc,"6,085.00",402401,12873
12/04/2021,ZZH690223,1,178,Trafford Council,999999,Fees and Charges,Fees and Charges,Corporate and Support Services,STaR Procurement,"413,792.00",402407,11136
12/04/2021,ZZH690224,1,14034,Oxygen Finance Limited,999999,Fees and Charges,Fees and Charges,Corporate and Support Services (Tech),Corporate Contingenc,"7,500.00",401035,10977
12/04/2021,ZZH690226,1,11466,High Peak School Ltd,261500,Human Resources Training & Conferences ,Fees and Charges,Services to People,SEN Independent Sch,"61,000.00",401024,10372
12/04/2021,ZZH690227,1,12269,PENARTH GROUP,261500,Human Resources Training & Conferences ,Fees and Charges,Services to People,SEN Independent Sch,"78,664.00",401024,10372
12/04/2021,ZZH690228,1,12180,Acorn Care and Education,261500,Human Resources Training & Conferences ,Fees and Charges,Services to People,SEN Independent Sch,"58,069.00",401024,10372
12/04/2021,ZZH690229,1,12180,Acorn Care and Education,261500,Human Resources Training & Conferences ,Fees and Charges,Services to People,SEN Independent Sch,"71,057.00",401024,10372
12/04/2021,ZZH690230,1,12180,Acorn Care and Education,261500,Human Resources Training & Conferences ,Fees and Charges,Services to People,SEN Independent Sch,"64,287.00",401024,10372
12/04/2021,ZZH690233,1,12180,Acorn Care and Education,261500,Human Resources Training & Conferences ,Fees and Charges,Services to People,SEN Independent Sch,"58,069.00",401024,10372
12/04/2021,ZZH690234,1,11955,ROSSENDALE SCHOOL,261500,Human Resources Training & Conferences ,Fees and Charges,Services to People,SEN Independent Sch,"56,232.00",401024,10372
12/04/2021,ZZH690235,1,1722,The Together Trust Centre,261500,Human Resources Training & Conferences ,Fees and Charges,Services to People,SEN NMSS School Fees,"61,200.00",401024,12710
12/04/2021,ZZH690236,1,1722,The Together Trust Centre,261500,Human Resources Training & Conferences ,Fees and Charges,Services to People,SEN NMSS School Fees,"56,065.00",401024,12710
12/04/2021,ZZH690237,1,1722,The Together Trust Centre,261500,Human Resources Training & Conferences ,Fees and Charges,Services to People,SEN NMSS School Fees,"71,120.00",401024,12710
12/04/2021,ZZH690238,1,1722,The Together Trust Centre,261500,Human Resources Training & Conferences ,Fees and Charges,Services to People,SEN NMSS School Fees,"62,342.48",401024,12710
12/04/2021,ZZH690239,1,1722,The Together Trust Centre,261500,Human Resources Training & Conferences ,Fees and Charges,Services to People,SEN NMSS School Fees,"65,515.00",401024,12710
12/04/2021,ZZH690240,1,1722,The Together Trust Centre,261500,Human Resources Training & Conferences ,Fees and Charges,Services to People,SEN NMSS School Fees,"73,523.00",401024,12710
12/04/2021,ZZH690241,1,1722,The Together Trust Centre,261500,Human Resources Training & Conferences ,Fees and Charges,Services to People,SEN NMSS School Fees,"56,700.72",401024,12710
12/04/2021,ZZH690242,1,1722,The Together Trust Centre,261500,Human Resources Training & Conferences ,Fees and Charges,Services to People,SEN NMSS School Fees,"61,200.00",401024,12710
12/04/2021,ZZH690243,1,1722,The Together Trust Centre,261500,Human Resources Training & Conferences ,Fees and Charges,Services to People,SEN NMSS School Fees,"65,515.00",401024,12710
12/04/2021,ZZH690244,1,1722,The Together Trust Centre,261500,Human Resources Training & Conferences ,Fees and Charges,Services to People,SEN NMSS School Fees,"68,256.00",401024,12710
12/04/2021,ZZH690245,1,1722,The Together Trust Centre,261500,Human Resources Training & Conferences ,Fees and Charges,Services to People,SEN NMSS School Fees,"73,253.00",401024,12710
12/04/2021,ZZH690246,1,1722,The Together Trust Centre,261500,Human Resources Training & Conferences ,Fees and Charges,Services to People,SEN NMSS School Fees,"57,732.75",401024,12710
12/04/2021,ZZH690247,1,1816,Seashell Trust,261500,Human Resources Training & Conferences ,Fees and Charges,Services to People,SEN NMSS School Fees,"86,034.95",401024,12710
12/04/2021,ZZH690248,1,1816,Seashell Trust,261500,Human Resources Training & Conferences ,Fees and Charges,Services to People,SEN NMSS School Fees,"86,819.87",401024,12710
12/04/2021,ZZH690249,1,1816,Seashell Trust,261500,Human Resources Training & Conferences ,Fees and Charges,Services to People,SEN NMSS School Fees,"57,591.66",401024,12710
12/04/2021,ZZH690255,1,10867,ABL Health Ltd,310000,Healthcare  ,Third party payments - Public Sector,Services to People,PH-Lifestyles,"363,000.00",500402,12737
12/04/2021,ZZH690256,1,14618,NHS Manchester CCG,#N/A,#N/A,#N/A,Services to People,PH-Test & Trace,"12,468.00",500999,13080
12/04/2021,ZZH690263,1,10867,ABL Health Ltd,999999,Social Community Care Supplies & Services  ,Service Contract Payments,Services to People,PH - COMF Grant,"16,000.00",561704,13097
12/04/2021,ZZH690273,1,1669,Charnwood Nursery,261500,Human Resources Training & Conferences ,Fees and Charges,Services to People,SEN Independent Sch,"5,922.64",401024,10372
12/04/2021,ZZH690275,1,11861,WARGRAVE HOUSE SCHOOL,261500,Human Resources Training & Conferences ,Fees and Charges,Services to People,SEN NMSS School Fees,"34,696.00",401024,12710
12/04/2021,ZZH690276,1,12188,ST JOHN VIANNEY,261500,Human Resources Training & Conferences ,Fees and Charges,Services to People,SEN NMSS School Fees,"20,000.00",401024,12710
12/04/2021,ZZH690277,1,12188,ST JOHN VIANNEY,261500,Human Resources Training & Conferences ,Fees and Charges,Services to People,SEN NMSS School Fees,"18,848.00",401024,12710
12/04/2021,ZZH690278,1,12188,ST JOHN VIANNEY,261500,Human Resources Training & Conferences ,Fees and Charges,Services to People,SEN NMSS School Fees,"20,000.00",401024,12710
12/04/2021,ZZH690279,1,12188,ST JOHN VIANNEY,261500,Human Resources Training & Conferences ,Fees and Charges,Services to People,SEN NMSS School Fees,"29,934.00",401024,12710
12/04/2021,ZZH690280,1,12188,ST JOHN VIANNEY,261500,Human Resources Training & Conferences ,Fees and Charges,Services to People,SEN NMSS School Fees,"29,934.00",401024,12710
12/04/2021,ZZH690281,1,12188,ST JOHN VIANNEY,261500,Human Resources Training & Conferences ,Fees and Charges,Services to People,SEN NMSS School Fees,"21,650.00",401024,12710
12/04/2021,ZZH690282,1,12188,ST JOHN VIANNEY,261500,Human Resources Training & Conferences ,Fees and Charges,Services to People,SEN NMSS School Fees,"7,853.33",401024,12710
12/04/2021,ZZH690283,1,12188,ST JOHN VIANNEY,261500,Human Resources Training & Conferences ,Fees and Charges,Services to People,SEN NMSS School Fees,"6,282.67",401024,12710
12/04/2021,ZZH690284,1,12188,ST JOHN VIANNEY,261500,Human Resources Training & Conferences ,Fees and Charges,Services to People,SEN NMSS School Fees,"12,083.33",401024,12710
12/04/2021,ZZH690285,1,12188,ST JOHN VIANNEY,261500,Human Resources Training & Conferences ,Fees and Charges,Services to People,SEN NMSS School Fees,"6,666.67",401024,12710
12/04/2021,ZZH690286,1,12188,ST JOHN VIANNEY,261500,Human Resources Training & Conferences ,Fees and Charges,Services to People,SEN NMSS School Fees,"5,888.67",401024,12710
12/04/2021,ZZH690287,1,12188,ST JOHN VIANNEY,261500,Human Resources Training & Conferences ,Fees and Charges,Services to People,SEN NMSS School Fees,"18,848.00",401024,12710
12/04/2021,ZZH690288,1,12188,ST JOHN VIANNEY,261500,Human Resources Training & Conferences ,Fees and Charges,Services to People,SEN NMSS School Fees,"20,000.00",401024,12710
12/04/2021,ZZH690289,1,12188,ST JOHN VIANNEY,261500,Human Resources Training & Conferences ,Fees and Charges,Services to People,SEN NMSS School Fees,"20,000.00",401024,12710
12/04/2021,ZZH690290,1,12188,ST JOHN VIANNEY,261500,Human Resources Training & Conferences ,Fees and Charges,Services to People,SEN NMSS School Fees,"20,000.00",401024,12710
12/04/2021,ZZH690291,1,12188,ST JOHN VIANNEY,261500,Human Resources Training & Conferences ,Fees and Charges,Services to People,SEN NMSS School Fees,"20,000.00",401024,12710
12/04/2021,ZZH690292,1,12188,ST JOHN VIANNEY,261500,Human Resources Training & Conferences ,Fees and Charges,Services to People,SEN NMSS School Fees,"6,666.67",401024,12710
12/04/2021,ZZH690293,1,12188,ST JOHN VIANNEY,261500,Human Resources Training & Conferences ,Fees and Charges,Services to People,SEN NMSS School Fees,"18,849.00",401024,12710
12/04/2021,ZZH690294,1,12188,ST JOHN VIANNEY,261500,Human Resources Training & Conferences ,Fees and Charges,Services to People,SEN NMSS School Fees,"6,283.00",401024,12710
12/04/2021,ZZH690295,1,1816,Seashell Trust,261500,Human Resources Training & Conferences ,Fees and Charges,Services to People,SEN NMSS School Fees,"20,186.01",401024,12710
12/04/2021,ZZH690296,1,1699,Mary Hare School,261500,Human Resources Training & Conferences ,Fees and Charges,Services to People,SEN NMSS School Fees,"14,756.33",401024,12710
12/04/2021,ZZH690297,1,1722,The Together Trust Centre,261500,Human Resources Training & Conferences ,Fees and Charges,Services to People,SEN NMSS School Fees,"20,967.50",401024,12710
12/04/2021,ZZH690298,1,1722,The Together Trust Centre,261500,Human Resources Training & Conferences ,Fees and Charges,Services to People,SEN NMSS School Fees,"21,904.24",401024,12710
12/04/2021,ZZH690299,1,1722,The Together Trust Centre,261500,Human Resources Training & Conferences ,Fees and Charges,Services to People,SEN NMSS School Fees,"46,339.89",401024,12710
12/04/2021,ZZH690300,1,1722,The Together Trust Centre,261500,Human Resources Training & Conferences ,Fees and Charges,Services to People,SEN NMSS School Fees,"29,633.33",401024,12710
12/04/2021,ZZH690301,1,1722,The Together Trust Centre,261500,Human Resources Training & Conferences ,Fees and Charges,Services to People,SEN NMSS School Fees,"20,583.33",401024,12710
12/04/2021,ZZH690302,1,1722,The Together Trust Centre,261500,Human Resources Training & Conferences ,Fees and Charges,Services to People,SEN NMSS School Fees,"31,000.00",401024,12710
12/04/2021,ZZH690303,1,8423,SMS Coaching Limited,261500,Human Resources Training & Conferences ,Fees and Charges,Services to People,SEN Independent Sch,"44,650.00",401024,10372
12/04/2021,ZZH690304,1,8423,SMS Coaching Limited,261500,Human Resources Training & Conferences ,Fees and Charges,Services to People,SEN Independent Sch,"19,333.33",401024,10372
12/04/2021,ZZH690305,1,8423,SMS Coaching Limited,261500,Human Resources Training & Conferences ,Fees and Charges,Services to People,SEN Independent Sch,"19,333.33",401024,10372
12/04/2021,ZZH690306,1,12180,Acorn Care and Education,261500,Human Resources Training & Conferences ,Fees and Charges,Services to People,SEN Independent Sch,"35,640.00",401024,10372
12/04/2021,ZZH690307,1,12180,Acorn Care and Education,261500,Human Resources Training & Conferences ,Fees and Charges,Services to People,SEN Independent Sch,"33,592.00",401024,10372
12/04/2021,ZZH690308,1,12180,Acorn Care and Education,261500,Human Resources Training & Conferences ,Fees and Charges,Services to People,SEN Independent Sch,"34,600.00",401024,10372
12/04/2021,ZZH690309,1,12180,Acorn Care and Education,261500,Human Resources Training & Conferences ,Fees and Charges,Services to People,SEN Independent Sch,"23,791.67",401024,10372
12/04/2021,ZZH690310,1,12180,Acorn Care and Education,261500,Human Resources Training & Conferences ,Fees and Charges,Services to People,SEN Independent Sch,"33,592.00",401024,10372
12/04/2021,ZZH690312,1,14618,NHS Manchester CCG,#N/A,#N/A,#N/A,Services to People,PH-Test & Trace,"112,468.00",500999,13080
12/04/2021,ZZH690313,1,12180,Acorn Care and Education,261500,Human Resources Training & Conferences ,Fees and Charges,Services to People,SEN Independent Sch,"33,592.00",401024,10372
12/04/2021,ZZH690314,1,12180,Acorn Care and Education,261500,Human Resources Training & Conferences ,Fees and Charges,Services to People,SEN Independent Sch,"11,533.33",401024,10372
12/04/2021,ZZH690315,1,12180,Acorn Care and Education,261500,Human Resources Training & Conferences ,Fees and Charges,Services to People,SEN Independent Sch,"12,771.00",401024,10372
12/04/2021,ZZH690316,1,12180,Acorn Care and Education,261500,Human Resources Training & Conferences ,Fees and Charges,Services to People,SEN Independent Sch,"33,592.00",401024,10372
12/04/2021,ZZH690317,1,12180,Acorn Care and Education,261500,Human Resources Training & Conferences ,Fees and Charges,Services to People,SEN Independent Sch,"33,592.00",401024,10372
12/04/2021,ZZH690318,1,12180,Acorn Care and Education,261500,Human Resources Training & Conferences ,Fees and Charges,Services to People,SEN Independent Sch,"33,592.00",401024,10372
12/04/2021,ZZH690319,1,12180,Acorn Care and Education,261500,Human Resources Training & Conferences ,Fees and Charges,Services to People,SEN Independent Sch,"14,416.67",401024,10372
12/04/2021,ZZH690320,1,12180,Acorn Care and Education,261500,Human Resources Training & Conferences ,Fees and Charges,Services to People,SEN Independent Sch,"35,640.00",401024,10372
12/04/2021,ZZH690321,1,12180,Acorn Care and Education,261500,Human Resources Training & Conferences ,Fees and Charges,Services to People,SEN Independent Sch,"11,533.33",401024,10372
12/04/2021,ZZH690322,1,12180,Acorn Care and Education,261500,Human Resources Training & Conferences ,Fees and Charges,Services to People,SEN Independent Sch,"35,640.00",401024,10372
12/04/2021,ZZH690323,1,12180,Acorn Care and Education,261500,Human Resources Training & Conferences ,Fees and Charges,Services to People,SEN Independent Sch,"33,592.00",401024,10372
12/04/2021,ZZH690324,1,12180,Acorn Care and Education,261500,Human Resources Training & Conferences ,Fees and Charges,Services to People,SEN Independent Sch,"11,197.33",401024,10372
12/04/2021,ZZH690325,1,12269,PENARTH GROUP,261500,Human Resources Training & Conferences ,Fees and Charges,Services to People,SEN Independent Sch,"38,000.00",401024,10372
12/04/2021,ZZH690326,1,12269,PENARTH GROUP,261500,Human Resources Training & Conferences ,Fees and Charges,Services to People,SEN Independent Sch,"38,000.00",401024,10372
12/04/2021,ZZH690327,1,12269,PENARTH GROUP,261500,Human Resources Training & Conferences ,Fees and Charges,Services to People,SEN Independent Sch,"38,000.00",401024,10372
12/04/2021,ZZH690328,1,12269,PENARTH GROUP,261500,Human Resources Training & Conferences ,Fees and Charges,Services to People,SEN Independent Sch,"38,000.00",401024,10372
12/04/2021,ZZH690329,1,12269,PENARTH GROUP,261500,Human Resources Training & Conferences ,Fees and Charges,Services to People,SEN Independent Sch,"38,000.00",401024,10372
12/04/2021,ZZH690330,1,12269,PENARTH GROUP,261500,Human Resources Training & Conferences ,Fees and Charges,Services to People,SEN Independent Sch,"48,948.00",401024,10372
12/04/2021,ZZH690331,1,12269,PENARTH GROUP,261500,Human Resources Training & Conferences ,Fees and Charges,Services to People,SEN Independent Sch,"15,822.92",401024,10372
12/04/2021,ZZH690332,1,12269,PENARTH GROUP,261500,Human Resources Training & Conferences ,Fees and Charges,Services to People,SEN Independent Sch,"38,000.00",401024,10372
12/04/2021,ZZH690333,1,12269,PENARTH GROUP,261500,Human Resources Training & Conferences ,Fees and Charges,Services to People,SEN Independent Sch,"15,833.33",401024,10372
12/04/2021,ZZH690334,1,4083,Hulme Hall School,261500,Human Resources Training & Conferences ,Fees and Charges,Services to People,SEN Independent Sch,"13,200.60",401024,10372
12/04/2021,ZZH690335,1,4083,Hulme Hall School,261500,Human Resources Training & Conferences ,Fees and Charges,Services to People,SEN Independent Sch,"10,881.00",401024,10372
12/04/2021,ZZH690336,1,4083,Hulme Hall School,261500,Human Resources Training & Conferences ,Fees and Charges,Services to People,SEN Independent Sch,"8,649.00",401024,10372
12/04/2021,ZZH690337,1,11466,High Peak School Ltd,261500,Human Resources Training & Conferences ,Fees and Charges,Services to People,SEN Independent Sch,"19,487.20",401024,10372
12/04/2021,ZZH690338,1,11466,High Peak School Ltd,261500,Human Resources Training & Conferences ,Fees and Charges,Services to People,SEN Independent Sch,"22,851.58",401024,10372
12/04/2021,ZZH690339,1,13553,Cumberland & Westmorland Schoo,261500,Human Resources Training & Conferences ,Fees and Charges,Services to People,SEN Independent Sch,"19,746.03",401024,10372
12/04/2021,ZZH690340,1,14453,Craegmoor Arden College Priory,261500,Human Resources Training & Conferences ,Fees and Charges,Services to People,SEN Independent Sch,"21,357.78",401024,10372
12/04/2021,ZZH690342,1,1669,Charnwood Nursery,261500,Human Resources Training & Conferences ,Fees and Charges,Services to People,SEN Independent Sch,"5,922.64",401024,10372
12/04/2021,ZZH690343,1,1669,Charnwood Nursery,261500,Human Resources Training & Conferences ,Fees and Charges,Services to People,SEN Independent Sch,"5,922.64",401024,10372
12/04/2021,ZZH690344,1,1669,Charnwood Nursery,261500,Human Resources Training & Conferences ,Fees and Charges,Services to People,SEN Independent Sch,"5,922.64",401024,10372
12/04/2021,ZZH690345,1,1669,Charnwood Nursery,261500,Human Resources Training & Conferences ,Fees and Charges,Services to People,SEN Independent Sch,"5,922.64",401024,10372
12/04/2021,ZZH690346,1,1669,Charnwood Nursery,261500,Human Resources Training & Conferences ,Fees and Charges,Services to People,SEN Independent Sch,"5,922.64",401024,10372
12/04/2021,ZZH690347,1,1669,Charnwood Nursery,261500,Human Resources Training & Conferences ,Fees and Charges,Services to People,SEN Independent Sch,"5,922.64",401024,10372
12/04/2021,ZZH690350,1,1669,Charnwood Nursery,261500,Human Resources Training & Conferences ,Fees and Charges,Services to People,SEN Independent Sch,"5,922.64",401024,10372
12/04/2021,ZZH690353,1,1669,Charnwood Nursery,261500,Human Resources Training & Conferences ,Fees and Charges,Services to People,SEN Independent Sch,"5,922.64",401024,10372
12/04/2021,ZZH690354,1,1669,Charnwood Nursery,261500,Human Resources Training & Conferences ,Fees and Charges,Services to People,SEN Independent Sch,"5,922.64",401024,10372
12/04/2021,ZZH690373,1,6748,GEORGE COX & SONS LTD,390000,Supplies and services,Supplies and services,#N/A,#N/A,"11,216.08",401600,C.11502.122
12/04/2021,ZZH690378,1,7820,GMCA - GMUTC,230000,Highway Equipment & Materials�   ,Highways Maintenance,#N/A,#N/A,"40,803.36",202054,C.01368.203
12/04/2021,ZZH690379,1,8106,Tarmac Trading Ltd,390000,Supplies and services,Supplies and services,#N/A,#N/A,"45,774.40",401600,C.01386.203
12/04/2021,ZZH690380,1,3529,Totally Local Company Ltd,390000,Supplies and services,Supplies and services,#N/A,#N/A,"10,007.70",401600,C.00718.203
12/04/2021,ZZH690381,1,3529,Totally Local Company Ltd,390000,Supplies and services,Supplies and services,#N/A,#N/A,"46,017.29",401600,C.01359.201
13/04/2021,ZZH690432,1,7802,Craemer UK Ltd,182020,Environmental Services Waste Management,Waste Management Equipment,Services to Place,Wheelie Bins,"9,628.50",400401,10864
13/04/2021,ZZH690432,2,7802,Craemer UK Ltd,182020,Environmental Services Waste Management,Waste Management Equipment,Services to Place,Wheelie Bins,"7,140.00",400401,10864
13/04/2021,ZZH690433,1,3529,Totally Local Company Ltd,350000,Street & Traffic Management  ,Fixtures and Fittings,Services to Place,Public Realm Inspect,"15,000.00",201202,10879
13/04/2021,ZZH690468,1,1542,Shred It,190000,Facilities & Management Services  ,Office Expenses,Services to People,TM Contracts & Comm,"5,000.00",400703,11870
13/04/2021,ZZH690469,1,1382,Pure Innovations Ltd,390000,Supplies and services,Supplies and services,Services to People,Pure Innovations,"168,600.00",401600,11071
13/04/2021,ZZH690470,1,10338,STOCKPORT CAR SCHEMES,150000,Consultancy   ,Professional Fees,Services to People,WIN Contracts (X3),"108,000.00",401020,12855
13/04/2021,ZZH690471,1,1382,Pure Innovations Ltd,150000,Consultancy   ,Professional Fees,Services to People,WIN Contracts (X3),"270,000.00",401020,12855
13/04/2021,ZZH690472,1,1104,Age UK Stockport,150000,Consultancy   ,Professional Fees,Services to People,WIN Contracts (X3),"270,000.00",401020,12855
14/04/2021,ZZH690540,1,6803,Bibliotheca Ltd,181800,Environmental Services Technical Equipment ,Furniture and Equipment,Corporate and Support Services,Public Libraries Gen,"9,270.00",400111,11329
14/04/2021,ZZH690540,2,6803,Bibliotheca Ltd,181800,Environmental Services Technical Equipment ,Furniture and Equipment,Corporate and Support Services,Public Libraries Gen,"1,584.00",400111,11329
14/04/2021,ZZH690564,1,2927,XMA Ltd,270000,Information Communication Technology  ,Information and Communications Technology,Services to People,SHV CSC Locality Lea,21.00,402001,11514
14/04/2021,ZZH690564,2,2927,XMA Ltd,270000,Information Communication Technology  ,Information and Communications Technology,Services to People,SHV CSC Locality Lea,21.00,402001,11514
14/04/2021,ZZH690564,3,2927,XMA Ltd,270000,Information Communication Technology  ,Information and Communications Technology,Services to People,SHV CSC Locality Lea,"5,376.42",402001,11514
14/04/2021,ZZH690564,4,2927,XMA Ltd,270000,Information Communication Technology  ,Information and Communications Technology,Services to People,SHV CSC Locality Lea,73.32,402001,11514
15/04/2021,ZZH690598,1,11539,Bolinda UK Limited,171113,Education Library Books ,Library Equipment,Corporate and Support Services,Library Dev & Res,"5,725.70",400201,11328
15/04/2021,ZZH690599,1,11539,Bolinda UK Limited,171113,Education Library Books ,Library Equipment,Corporate and Support Services,Library Dev & Res,"29,104.50",400202,11328
15/04/2021,ZZH690599,2,11539,Bolinda UK Limited,171113,Education Library Books ,Library Equipment,Corporate and Support Services,Library Dev & Res,"2,500.00",400202,11328
15/04/2021,ZZH690600,1,1799,Stockport Homes,150000,Consultancy   ,Professional Fees,Services to Place,HoS Public Protectn,"25,675.00",401020,12753
15/04/2021,ZZH690609,1,1342,UK Container Maintenance Ltd,182020,Environmental Services Waste Management,Waste Management Equipment,Services to Place,Bulk Container,"5,343.00",400401,10883
15/04/2021,ZZH690609,2,1342,UK Container Maintenance Ltd,182020,Environmental Services Waste Management,Waste Management Equipment,Services to Place,Bulk Container,"5,343.00",400401,10883
15/04/2021,ZZH690615,1,10670,Osborne Richardson,150000,Consultancy   ,Professional Fees,Services to Place,Food & Safety,"13,000.00",401007,10912
15/04/2021,ZZH690635,1,14414,MEADOWS CARE LTD,261500,Human Resources Training & Conferences ,Fees and Charges,Services to People,SEN Independent Sch,"26,410.00",401024,10372
15/04/2021,ZZH690637,1,13808,Progress to Excellence Group,261500,Human Resources Training & Conferences ,Fees and Charges,Services to People,SEN Independent Sch,"24,090.00",401024,10372
15/04/2021,ZZH690638,1,13808,Progress to Excellence Group,261500,Human Resources Training & Conferences ,Fees and Charges,Services to People,SEN Independent Sch,"10,000.00",401024,10372
15/04/2021,ZZH690639,1,13808,Progress to Excellence Group,261500,Human Resources Training & Conferences ,Fees and Charges,Services to People,SEN Independent Sch,"21,000.00",401024,10372
15/04/2021,ZZH690640,1,13808,Progress to Excellence Group,261500,Human Resources Training & Conferences ,Fees and Charges,Services to People,SEN Independent Sch,"24,000.00",401024,10372
15/04/2021,ZZH690648,1,13692,Family Care Solutions,320000,Social Community Care Supplies & Services  ,Care Payments,Services to People,DP - Respite,"10,530.00",530335,11513
15/04/2021,ZZH690649,1,14298,Lagan's Foundation,320000,Social Community Care Supplies & Services  ,Care Payments,Services to People,DP - Respite,"58,368.70",530335,11513
15/04/2021,ZZH690650,1,1722,The Together Trust Centre,320000,Social Community Care Supplies & Services  ,Care Payments,Services to People,DP - Respite,"14,136.00",530335,11513
15/04/2021,ZZH690651,1,3284,Stockport CP Ltd t/a Supportab,320000,Social Community Care Supplies & Services  ,Care Payments,Services to People,DP - Respite,"6,656.00",530335,11513
15/04/2021,ZZH690653,1,1722,The Together Trust Centre,320000,Social Community Care Supplies & Services  ,Care Payments,Services to People,DP - Respite,"14,885.52",530335,11513
15/04/2021,ZZH690654,1,14298,Lagan's Foundation,320000,Social Community Care Supplies & Services  ,Care Payments,Services to People,DP - Respite,"22,464.00",530335,11513
15/04/2021,ZZH690655,1,1722,The Together Trust Centre,320000,Social Community Care Supplies & Services  ,Care Payments,Services to People,DP - Respite,"28,699.20",530335,11513
15/04/2021,ZZH690656,1,12140,Birtenshaw,320000,Social Community Care Supplies & Services  ,Care Payments,Services to People,DP - Respite,"8,386.56",530335,11513
15/04/2021,ZZH690657,1,6568,CROSSROADS CARING FOR CARERS,320000,Social Community Care Supplies & Services  ,Care Payments,Services to People,DP - Respite,"11,088.00",530335,11513
15/04/2021,ZZH690658,1,1722,The Together Trust Centre,320000,Social Community Care Supplies & Services  ,Care Payments,Services to People,DP - Respite,"14,136.00",530335,11513
15/04/2021,ZZH690660,1,1722,The Together Trust Centre,320000,Social Community Care Supplies & Services  ,Care Payments,Services to People,DP - Respite,"35,340.00",530335,11513
15/04/2021,ZZH690661,1,3284,Stockport CP Ltd t/a Supportab,320000,Social Community Care Supplies & Services  ,Care Payments,Services to People,DP - Respite,"6,656.00",530335,11513
15/04/2021,ZZH690662,1,14424,Just One Recruitment and Train,320000,Social Community Care Supplies & Services  ,Care Payments,Services to People,DP - Respite,"7,657.00",530335,11513
15/04/2021,ZZH690665,1,11897,SENSE CAS FINANCE TEAM,320000,Social Community Care Supplies & Services  ,Care Payments,Services to People,DP - Respite,"15,849.60",530335,11513
16/04/2021,ZZH690667,1,3529,Totally Local Company Ltd,390000,"Works - Construction, Repair & Maintenance  ",Capital Expenditure - Works,#N/A,#N/A,"6,175.00",200304,C.00712.203
16/04/2021,ZZH690679,1,9365,DSI Billing Services Ltd,191600,Facilities & Management Services Printing ,Printing and Photocopying,Corporate and Support Services,Bentax,"101,410.00",400800,11139
16/04/2021,ZZH690681,1,13495,Pell Frischmann Consultants Lt,390000,Supplies and services,Supplies and services,Services to Place,Town deal Cheadle,"8,910.20",401600,13057
16/04/2021,ZZH690691,1,3284,Stockport CP Ltd t/a Supportab,320000,Social Community Care Supplies & Services  ,Care Payments,Services to People,DP - Respite,"9,984.00",530335,11513
16/04/2021,ZZH690692,1,1339,Stockport NHS Foundation Trust,320000,Social Community Care Supplies & Services  ,Care Payments,Services to People,DP - Respite,"36,960.00",530335,11513
16/04/2021,ZZH690694,1,1339,Stockport NHS Foundation Trust,320000,Social Community Care Supplies & Services  ,Care Payments,Services to People,DP - Respite,"36,960.00",530335,11513
16/04/2021,ZZH690695,1,3284,Stockport CP Ltd t/a Supportab,320000,Social Community Care Supplies & Services  ,Care Payments,Services to People,DP - Respite,"12,672.00",530335,11513
16/04/2021,ZZH690696,1,1722,The Together Trust Centre,320000,Social Community Care Supplies & Services  ,Care Payments,Services to People,DP - Respite,"107,000.00",530335,11513
16/04/2021,ZZH690697,1,1722,The Together Trust Centre,320000,Social Community Care Supplies & Services  ,Care Payments,Services to People,DP - Respite,"23,291.76",530335,11513
16/04/2021,ZZH690700,1,1722,The Together Trust Centre,320000,Social Community Care Supplies & Services  ,Care Payments,Services to People,DP - Respite,"29,021.52",530335,11513
16/04/2021,ZZH690701,1,1722,The Together Trust Centre,320000,Social Community Care Supplies & Services  ,Care Payments,Services to People,DP - Respite,"26,543.64",530335,11513
16/04/2021,ZZH690703,1,1722,The Together Trust Centre,320000,Social Community Care Supplies & Services  ,Care Payments,Services to People,DP - Respite,"22,276.32",530335,11513
16/04/2021,ZZH690705,1,3284,Stockport CP Ltd t/a Supportab,320000,Social Community Care Supplies & Services  ,Care Payments,Services to People,DP - Respite,"7,160.40",530335,11513
16/04/2021,ZZH690706,1,12138,HG CARE SERVICES LTD,320000,Social Community Care Supplies & Services  ,Care Payments,Services to People,DP - Respite,"10,605.60",530335,11513
16/04/2021,ZZH690710,1,4369,Pennine Care NHS Trust,310000,Healthcare  ,Third party payments - Public Sector,Services to People,Scale & Spread - NWD,"14,807.92",500402,13029
16/04/2021,ZZH690720,1,14298,Lagan's Foundation,320000,Social Community Care Supplies & Services  ,Care Payments,Services to People,DP - Respite,"7,488.00",530335,11513
16/04/2021,ZZH690721,1,3284,Stockport CP Ltd t/a Supportab,320000,Social Community Care Supplies & Services  ,Care Payments,Services to People,DP - Respite,"5,824.00",530335,11513
16/04/2021,ZZH690722,1,1722,The Together Trust Centre,320000,Social Community Care Supplies & Services  ,Care Payments,Services to People,DP - Respite,"12,442.09",530335,11513
16/04/2021,ZZH690725,1,1722,The Together Trust Centre,320000,Social Community Care Supplies & Services  ,Care Payments,Services to People,DP - Respite,"14,136.00",530335,11513
16/04/2021,ZZH690727,1,13993,Tordan Healthcare Ltd,320000,Social Community Care Supplies & Services  ,Care Payments,Services to People,DP - Respite,"9,672.00",530335,11513
16/04/2021,ZZH690728,1,11782,Time Specialist Support,320000,Social Community Care Supplies & Services  ,Care Payments,Services to People,DP - Respite,"5,725.00",530335,11513
16/04/2021,ZZH690729,1,1722,The Together Trust Centre,320000,Social Community Care Supplies & Services  ,Care Payments,Services to People,DP - Respite,"14,136.00",530335,11513
16/04/2021,ZZH690730,1,1722,The Together Trust Centre,320000,Social Community Care Supplies & Services  ,Care Payments,Services to People,DP - Respite,"24,773.60",530335,11513
16/04/2021,ZZH690731,1,1722,The Together Trust Centre,320000,Social Community Care Supplies & Services  ,Care Payments,Services to People,DP - Respite,"21,578.76",530335,11513
16/04/2021,ZZH690732,1,1339,Stockport NHS Foundation Trust,320000,Social Community Care Supplies & Services  ,Care Payments,Services to People,DP - Respite,"36,960.00",530335,11513
16/04/2021,ZZH690733,1,1339,Stockport NHS Foundation Trust,320000,Social Community Care Supplies & Services  ,Care Payments,Services to People,DP - Respite,"36,960.00",530335,11513
16/04/2021,ZZH690734,1,1722,The Together Trust Centre,320000,Social Community Care Supplies & Services  ,Care Payments,Services to People,DP - Respite,"18,934.80",530358,11513
16/04/2021,ZZH690735,1,1722,The Together Trust Centre,320000,Social Community Care Supplies & Services  ,Care Payments,Services to People,DP - Respite,"57,646.80",530335,11513
16/04/2021,ZZH690736,1,11782,Time Specialist Support,320000,Social Community Care Supplies & Services  ,Care Payments,Services to People,DP - Respite,"24,773.60",530335,11513
16/04/2021,ZZH690737,1,11897,SENSE CAS FINANCE TEAM,320000,Social Community Care Supplies & Services  ,Care Payments,Services to People,DP - Respite,"7,030.40",530335,11513
16/04/2021,ZZH690738,1,3284,Stockport CP Ltd t/a Supportab,320000,Social Community Care Supplies & Services  ,Care Payments,Services to People,DP - Respite,"8,320.00",530335,11513
16/04/2021,ZZH690752,1,13002,SpeechWise Speech and Language,150000,Consultancy   ,Professional Fees,Services to People,SEN Specific support,"18,750.00",401020,10300
16/04/2021,ZZH690753,1,13002,SpeechWise Speech and Language,150000,Consultancy   ,Professional Fees,Services to People,SEN Specific support,"23,156.25",401020,10300
16/04/2021,ZZH690760,1,11209,Progress Care and Education Lt,261500,Human Resources Training & Conferences ,Fees and Charges,Services to People,SEN Independent Sch,"40,705.38",401024,10372
16/04/2021,ZZH690761,1,13316,New Bridge Multi Academy Group,170000,Education  ,Third party payments - Public Sector,Services to People,OLA pupils,"14,265.00",500304,10371
16/04/2021,ZZH690762,1,13316,New Bridge Multi Academy Group,170000,Education  ,Third party payments - Public Sector,Services to People,OLA pupils,"14,000.00",500304,10371
16/04/2021,ZZH690763,1,13316,New Bridge Multi Academy Group,170000,Education  ,Third party payments - Public Sector,Services to People,OLA pupils,"27,725.00",500304,10371
16/04/2021,ZZH690764,1,12269,PENARTH GROUP,261500,Human Resources Training & Conferences ,Fees and Charges,Services to People,SEN Independent Sch,"38,000.00",401024,10372
16/04/2021,ZZH690765,1,14234,Alex Park Democratic School,170000,Education  ,Third party payments - Public Sector,Services to People,OLA pupils,"6,435.00",500304,10371
16/04/2021,ZZH690772,1,13839,Optimum Groundworks,240000,Horticultural  ,Grounds Maintenance,Services to Place,Mill Lane Cemetery,"11,704.00",202030,11287
19/04/2021,ZZH690802,1,4514,Brook,390000,Supplies and services,Supplies and services,Services to People,PH-Chlamydia Screen,"24,276.00",401600,12747
19/04/2021,ZZH690809,1,939,BT Redcare,270000,Information Communication Technology  ,Information and Communications Technology,Services to Place,CCTV-Control,"23,000.00",402008,12822
19/04/2021,ZZH690824,1,8106,Tarmac Trading Ltd,390000,Supplies and services,Supplies and services,#N/A,#N/A,"52,975.00",401600,C.01188.203
19/04/2021,ZZH690839,1,3529,Totally Local Company Ltd,130000,Cleaning & Janitorial  ,Cleaning,Services to People,EHP CC Abacus,"17,182.56",201602,10844
19/04/2021,ZZH690844,1,9232,Reed Specialist Recruitment Lt,320000,Social Community Care Supplies & Services  ,Care Payments,Services to People,DP - Respite,"10,811.84",530358,11513
19/04/2021,ZZH690847,1,14570,Bevan Care,320000,Social Community Care Supplies & Services  ,Care Payments,Services to People,DP - Respite,"8,112.00",530335,11513
19/04/2021,ZZH690852,1,3284,Stockport CP Ltd t/a Supportab,320000,Social Community Care Supplies & Services  ,Care Payments,Services to People,DP - Respite,"7,072.00",530358,11513
19/04/2021,ZZH690853,1,3284,Stockport CP Ltd t/a Supportab,320000,Social Community Care Supplies & Services  ,Care Payments,Services to People,DP - Respite,"7,072.00",530358,11513
19/04/2021,ZZH690860,1,6967,Wilde Consultants Ltd,390000,Supplies and services,Supplies and services,Services to People,Condition Surveys,"11,196.00",401600,10734
19/04/2021,ZZH690861,1,6967,Wilde Consultants Ltd,390000,Supplies and services,Supplies and services,Services to People,Condition Surveys,"7,470.00",401600,10734
20/04/2021,ZZH690875,1,1722,The Together Trust Centre,150000,Consultancy   ,Professional Fees,Services to People,SEN Specific support,"498,046.00",401020,10300
20/04/2021,ZZH690876,1,13808,Progress to Excellence Group,261500,Human Resources Training & Conferences ,Fees and Charges,Services to People,SEN Independent Sch,"300,000.00",401024,10372
20/04/2021,ZZH690889,1,14628,Ramboll UK Limited,150000,Consultancy   ,Professional Fees,Services to Place,MDC Mayoral DC,"7,543.89",401007,13033
20/04/2021,ZZH690891,1,9365,DSI Billing Services Ltd,191600,Facilities & Management Services Printing ,Printing and Photocopying,Corporate and Support Services,Bentax,"50,237.14",400800,11139
20/04/2021,ZZH690921,1,12268,The Orchards,261500,Human Resources Training & Conferences ,Fees and Charges,Services to People,OLA pupils,"13,403.76",401024,10371
20/04/2021,ZZH690923,1,13231,Brentwood High School and Comm,170000,Education  ,Third party payments - Public Sector,Services to People,OLA pupils,"7,942.80",500304,10371
20/04/2021,ZZH690924,1,13231,Brentwood High School and Comm,170000,Education  ,Third party payments - Public Sector,Services to People,OLA pupils,"7,942.80",500304,10371
20/04/2021,ZZH690925,1,14517,St Richard's R C Primary Schoo,170000,Education  ,Third party payments - Public Sector,Services to People,OLA pupils,"5,052.00",500304,10371
20/04/2021,ZZH690926,1,14475,St Matthews Roman Catholic Hig,170000,Education  ,Third party payments - Public Sector,Services to People,OLA pupils,"6,433.00",500304,10371
20/04/2021,ZZH690929,1,13297,St Cuthbert's R.C Primary Scho,170000,Education  ,Third party payments - Public Sector,Services to People,OLA pupils,"5,052.00",500304,10371
20/04/2021,ZZH690931,1,11958,PIPER HILL SCHOOL,170000,Education  ,Third party payments - Public Sector,Services to People,OLA pupils,"8,200.00",500304,10371
20/04/2021,ZZH690933,1,11958,PIPER HILL SCHOOL,170000,Education  ,Third party payments - Public Sector,Services to People,OLA pupils,"9,300.00",500304,10371
20/04/2021,ZZH690935,1,14322,Manchester Enterprise Academy,170000,Education  ,Third party payments - Public Sector,Services to People,OLA pupils,"7,814.00",500304,10371
20/04/2021,ZZH690937,1,12265,Lancasterian School,170000,Education  ,Third party payments - Public Sector,Services to People,OLA pupils,"46,423.00",500304,10371
20/04/2021,ZZH690938,1,12265,Lancasterian School,170000,Education  ,Third party payments - Public Sector,Services to People,OLA pupils,"9,300.00",500304,10371
20/04/2021,ZZH690940,1,12265,Lancasterian School,170000,Education  ,Third party payments - Public Sector,Services to People,OLA pupils,"9,300.00",500304,10371
20/04/2021,ZZH690941,1,12265,Lancasterian School,170000,Education  ,Third party payments - Public Sector,Services to People,OLA pupils,"9,300.00",500304,10371
20/04/2021,ZZH690945,1,9456,Grange School,170000,Education  ,Third party payments - Public Sector,Services to People,OLA pupils,"9,583.33",500304,10371
20/04/2021,ZZH690950,1,11568,The Birches School,170000,Education  ,Third party payments - Public Sector,Services to People,OLA pupils,"8,200.00",500304,10371
20/04/2021,ZZH690951,1,11568,The Birches School,170000,Education  ,Third party payments - Public Sector,Services to People,OLA pupils,"9,300.00",500304,10371
20/04/2021,ZZH690952,1,12263,Ashgate Specialist Support Pri,170000,Education  ,Third party payments - Public Sector,Services to People,OLA pupils,"9,300.00",500304,10371
20/04/2021,ZZH690953,1,12263,Ashgate Specialist Support Pri,170000,Education  ,Third party payments - Public Sector,Services to People,OLA pupils,"8,236.00",500304,10371
20/04/2021,ZZH690955,1,13205,Manchester Occupational Therap,150000,Consultancy   ,Professional Fees,Services to People,SEN Specific support,"47,083.50",401020,10300
20/04/2021,ZZH690956,1,6702,Cheshire West and Chester Coun,170000,Education  ,Third party payments - Public Sector,Services to People,OLA pupils,"6,122.00",500304,10371
20/04/2021,ZZH690962,1,4238,Thomasson Memorial School,170000,Education  ,Third party payments - Public Sector,Services to People,OLA pupils,"26,734.00",500304,10371
20/04/2021,ZZH690963,1,4238,Thomasson Memorial School,170000,Education  ,Third party payments - Public Sector,Services to People,OLA pupils,"16,112.25",500304,10371
20/04/2021,ZZH690964,1,13205,Manchester Occupational Therap,150000,Consultancy   ,Professional Fees,Services to People,SEN Specific support,"47,083.50",401020,10300
20/04/2021,ZZH690965,1,3284,Stockport CP Ltd t/a Supportab,320000,Social Community Care Supplies & Services  ,Care Payments,Services to People,DP - Respite,"6,656.00",530358,11513
20/04/2021,ZZH690966,1,6568,CROSSROADS CARING FOR CARERS,320000,Social Community Care Supplies & Services  ,Care Payments,Services to People,DP - Respite,"5,616.00",530358,11513
20/04/2021,ZZH690967,1,6568,CROSSROADS CARING FOR CARERS,320000,Social Community Care Supplies & Services  ,Care Payments,Services to People,DP - Respite,"5,616.00",530358,11513
20/04/2021,ZZH690968,1,11897,SENSE CAS FINANCE TEAM,320000,Social Community Care Supplies & Services  ,Care Payments,Services to People,DP - Respite,"7,030.40",530358,11513
20/04/2021,ZZH690969,1,11897,SENSE CAS FINANCE TEAM,320000,Social Community Care Supplies & Services  ,Care Payments,Services to People,DP - Respite,"5,486.40",530358,11513
20/04/2021,ZZH690970,1,12138,HG CARE SERVICES LTD,320000,Social Community Care Supplies & Services  ,Care Payments,Services to People,DP - Respite,"6,188.00",530358,11513
20/04/2021,ZZH690975,1,3284,Stockport CP Ltd t/a Supportab,320000,Social Community Care Supplies & Services  ,Care Payments,Services to People,DP - Respite,"5,440.00",530358,11513
20/04/2021,ZZH690977,1,13762,Caremark (Stockport),320000,Social Community Care Supplies & Services  ,Care Payments,Services to People,DP - Respite,"6,719.70",530358,11513
20/04/2021,ZZH690979,1,3284,Stockport CP Ltd t/a Supportab,320000,Social Community Care Supplies & Services  ,Care Payments,Services to People,DP - Respite,"8,448.00",530358,11513
20/04/2021,ZZH690980,1,3284,Stockport CP Ltd t/a Supportab,320000,Social Community Care Supplies & Services  ,Care Payments,Services to People,DP - Respite,"8,448.00",530358,11513
20/04/2021,ZZH690986,1,1722,The Together Trust Centre,320000,Social Community Care Supplies & Services  ,Care Payments,Services to People,DP - Respite,"32,346.24",530358,11513
20/04/2021,ZZH690987,1,3284,Stockport CP Ltd t/a Supportab,320000,Social Community Care Supplies & Services  ,Care Payments,Services to People,DP - Respite,"7,637.76",530358,11513
20/04/2021,ZZH690988,1,11782,Time Specialist Support,320000,Social Community Care Supplies & Services  ,Care Payments,Services to People,DP - Respite,"11,820.00",530358,11513
20/04/2021,ZZH690991,1,35,CBC Computer Systems Ltd,320000,Social Community Care Supplies & Services  ,Care Payments,Corporate and Support Services,IT Infrastructure,"16,513.00",530356,11324
20/04/2021,ZZH690991,2,35,CBC Computer Systems Ltd,320000,Social Community Care Supplies & Services  ,Care Payments,Corporate and Support Services,IT Infrastructure,"41,100.00",530356,11324
20/04/2021,ZZH690991,3,35,CBC Computer Systems Ltd,320000,Social Community Care Supplies & Services  ,Care Payments,Corporate and Support Services,IT Infrastructure,"3,965.00",530356,11324
20/04/2021,ZZH690991,4,35,CBC Computer Systems Ltd,320000,Social Community Care Supplies & Services  ,Care Payments,Corporate and Support Services,IT Infrastructure,"10,300.00",530356,11324
20/04/2021,ZZH690991,5,35,CBC Computer Systems Ltd,320000,Social Community Care Supplies & Services  ,Care Payments,Corporate and Support Services,IT Infrastructure,900.00,530356,11324
20/04/2021,ZZH690991,6,35,CBC Computer Systems Ltd,320000,Social Community Care Supplies & Services  ,Care Payments,Corporate and Support Services,IT Infrastructure,"5,250.00",530356,11324
20/04/2021,ZZH690991,7,35,CBC Computer Systems Ltd,320000,Social Community Care Supplies & Services  ,Care Payments,Corporate and Support Services,IT Infrastructure,90.00,530356,11324
20/04/2021,ZZH690991,8,35,CBC Computer Systems Ltd,320000,Social Community Care Supplies & Services  ,Care Payments,Corporate and Support Services,IT Infrastructure,945.00,530356,11324
21/04/2021,ZZH691046,1,11021,The Laurus Trust (Cheadle Hulm,150000,Consultancy   ,Professional Fees,Services to People,T.Union facilities,"32,000.00",401020,10472
21/04/2021,ZZH691047,1,757,Transport for Greater Manchest,170000,Education  ,Welfare Payments,Services to People,SS-FreeSclTrans-Sec,"148,545.80",530102,10430
21/04/2021,ZZH691047,2,757,Transport for Greater Manchest,170000,Education  ,Welfare Payments,Services to People,SS-FreeSclTrans-Pri,"3,783.00",530102,10429
21/04/2021,ZZH691053,1,14619,Constellia Public Limited,150000,Consultancy   ,Professional Fees,Services to People,PIP COVID,"90,000.00",401020,13095
21/04/2021,ZZH691054,1,14262,Depaul UK,320000,Social Community Care Supplies & Services  ,Care Payments,Services to People,SC - Leaving Care,"168,000.00",530330,11501
21/04/2021,ZZH691056,1,3529,Totally Local Company Ltd,130000,Cleaning & Janitorial  ,Cleaning,Services to People,EHP CC Reddish Vale,"8,352.60",201602,12294
22/04/2021,ZZH691057,1,8106,Tarmac Trading Ltd,390000,Supplies and services,Supplies and services,#N/A,#N/A,"52,975.00",401600,C.00403
22/04/2021,ZZH691062,1,3529,Totally Local Company Ltd,390000,Supplies and services,Supplies and services,#N/A,#N/A,"10,833.93",401600,C.01324.203
22/04/2021,ZZH691074,1,10339,The Proud Trust,999999,Fees and Charges,Fees and Charges,Services to People,CYP PH Contracts,"9,652.00",402404,13034
22/04/2021,ZZH691077,1,11585,Trinity Christian School,261500,Human Resources Training & Conferences ,Fees and Charges,Services to People,SEN Specific support,"6,054.00",401024,10300
22/04/2021,ZZH691094,1,11021,The Laurus Trust (Cheadle Hulm,150000,Consultancy   ,Professional Fees,Services to People,T.Union facilities,"50,000.00",401020,10472
22/04/2021,ZZH691110,1,10346,STOCKPORT ADVOCACY,150000,Consultancy   ,Professional Fees,Services to People,Advocacy,"6,993,875.00",401020,12853
22/04/2021,ZZH691112,1,450,Leeds City Council,320000,Social Community Care Supplies & Services  ,Care Payments,Services to People,EP - Residential,"78,000.00",530351,11449
23/04/2021,ZZH691128,1,14625,BEE You! Personal Development,110000,Catering  ,Expenses and Allowances,Corporate and Support Services,POD Workforce Dev,"10,000.00",402202,11888
23/04/2021,ZZH691142,1,1339,Stockport NHS Foundation Trust,311410,Healthcare Occupational Therapy Services ,Fees and Charges,Services to People,LD Physio Centre,"8,000.00",401212,11826
23/04/2021,ZZH691143,1,13080,Skybound Therapies,320000,Social Community Care Supplies & Services  ,Care Payments,Services to People,LD Care Purchasing,"15,000.00",530332,11837
23/04/2021,ZZH691144,1,4369,Pennine Care NHS Trust,999999,UNCLASSIFIED  ,MISCLASSIFIED? CHECK BEFORE PUBLICATION,Services to People,LD Health Staff,"55,000.00",100115,12674
23/04/2021,ZZH691145,1,5668,Onward,202000,Financial Services Rents ,Rents,Services to People,LD Care Purchasing,"5,000.00",200700,11837
23/04/2021,ZZH691146,1,4369,Pennine Care NHS Trust,261400,Human Resources Temporary & Agency Staff ,Agency Staff,Services to People,Ld Medical Services,"48,000.00",100290,11828
26/04/2021,ZZH691183,1,10019,Access UK Ltd,270000,Information Communication Technology  ,Information and Communications Technology,Corporate and Support Services,Mangt Accounting,"27,300.00",402001,12872
26/04/2021,ZZH691183,2,10019,Access UK Ltd,270000,Information Communication Technology  ,Information and Communications Technology,Corporate and Support Services,Mangt Accounting,"2,000.00",402001,12872
26/04/2021,ZZH691183,3,10019,Access UK Ltd,270000,Information Communication Technology  ,Information and Communications Technology,Corporate and Support Services,Mangt Accounting,"1,250.00",402001,12872
26/04/2021,ZZH691183,4,10019,Access UK Ltd,270000,Information Communication Technology  ,Information and Communications Technology,Corporate and Support Services,Mangt Accounting,"9,100.00",402001,12872
26/04/2021,ZZH691183,5,10019,Access UK Ltd,270000,Information Communication Technology  ,Information and Communications Technology,Corporate and Support Services,Mangt Accounting,"2,500.00",402001,12872
26/04/2021,ZZH691189,1,4369,Pennine Care NHS Trust,310000,Healthcare  ,Third party payments - Public Sector,Services to People,Scale & Spread - NWD,"36,247.00",500402,13029
26/04/2021,ZZH691190,1,4369,Pennine Care NHS Trust,310000,Healthcare  ,Third party payments - Public Sector,Services to People,SC - CAHMS,"47,431.00",500402,11500
26/04/2021,ZZH691191,1,4369,Pennine Care NHS Trust,310000,Healthcare  ,Third party payments - Public Sector,Services to People,SC - CAHMS,"42,553.00",500402,11500
26/04/2021,ZZH691206,1,1339,Stockport NHS Foundation Trust,310000,Healthcare  ,Third party payments - Public Sector,Services to People,New Beginnings,"41,312.00",500402,13065
26/04/2021,ZZH691208,1,12193,Greater Manchester Combined Au,202100,Financial Services Subscriptions ,Third party payments - Public Sector,Corporate and Support Services,AGMA & LA Subs,"80,000.00",500305,10979
26/04/2021,ZZH691213,1,1339,Stockport NHS Foundation Trust,310000,Healthcare  ,Third party payments - Public Sector,Services to People,Werneth Programme,"22,575.00",500402,13030
26/04/2021,ZZH691214,1,1339,Stockport NHS Foundation Trust,310000,Healthcare  ,Third party payments - Public Sector,Services to People,Werneth Programme,"57,433.00",500402,13030
26/04/2021,ZZH691215,1,1339,Stockport NHS Foundation Trust,310000,Healthcare  ,Third party payments - Public Sector,Services to People,Werneth Programme,"20,265.00",500402,13030
26/04/2021,ZZH691216,1,1339,Stockport NHS Foundation Trust,310000,Healthcare  ,Third party payments - Public Sector,Services to People,Werneth Programme,"8,133.00",500402,13030
26/04/2021,ZZH691224,1,4369,Pennine Care NHS Trust,310000,Healthcare  ,Third party payments - Public Sector,Services to People,FDAC - Family D&A Ct,"35,762.00",500402,13058
26/04/2021,ZZH691225,1,4369,Pennine Care NHS Trust,150000,Consultancy   ,Professional Fees,Services to People,MOS - Mosaic Mngmnt,"50,191.00",401020,11430
26/04/2021,ZZH691243,1,13041,YARAN NORTHWEST CIC,999999,Social Community Care Supplies & Services  ,Service Contract Payments,Services to People,PH-Health Protection,"30,000.00",561704,12739
27/04/2021,ZZH691250,1,815,University of Manchester,150000,Consultancy   ,Professional Fees,Services to People,SI M&B Grant,"26,640.00",401007,13041
27/04/2021,ZZH691256,1,12367,Beech Hall School,261500,Human Resources Training & Conferences ,Fees and Charges,Services to People,SEN Independent Sch,"24,811.46",401024,10372
27/04/2021,ZZH691257,1,13594,Southern Cross School,170000,Education  ,Third party payments - Public Sector,Services to People,OLA pupils,"46,375.00",500304,10371
27/04/2021,ZZH691294,1,902,Bikeright,261500,Human Resources Training & Conferences ,Fees and Charges,Services to Place,Highways-Cycle Train,"75,381.00",401024,11962
27/04/2021,ZZH691307,1,3529,Totally Local Company Ltd,390000,Supplies and services,Supplies and services,#N/A,#N/A,"6,835.78",401600,C.01367.203
27/04/2021,ZZH691309,1,3529,Totally Local Company Ltd,390000,Supplies and services,Supplies and services,#N/A,#N/A,"9,401.87",401600,C.01367.203
28/04/2021,ZZH691314,1,7753,Netcall Technology Limited,150000,Consultancy   ,Professional Fees,Corporate and Support Services,Contact Centre & FPH,"20,370.00",401020,11065
28/04/2021,ZZH691315,1,7753,Netcall Technology Limited,150000,Consultancy   ,Professional Fees,Corporate and Support Services,Contact Centre & FPH,"9,550.00",401020,11065
28/04/2021,ZZH691319,1,1382,Pure Innovations Ltd,999999,Fees and Charges,Fees and Charges,Services to People,SPARC,"152,000.00",402404,11674
28/04/2021,ZZH691337,1,8236,STOCKPORT WITHOUT ABUSE,390000,Supplies and services,Supplies and services,Services to People,Domestic Abuse,"253,245.18",401600,12852
28/04/2021,ZZH691338,1,8236,STOCKPORT WITHOUT ABUSE,390000,Supplies and services,Supplies and services,Services to People,Domestic Abuse Bill,"30,000.00",401600,13111
28/04/2021,ZZH691352,1,1816,Seashell Trust,150000,Consultancy   ,Professional Fees,Services to People,PH-Local Pilot,"30,317.32",401020,13047
29/04/2021,ZZH691385,1,6967,Wilde Consultants Ltd,390000,"Works - Construction, Repair & Maintenance  ",Capital Expenditure - Works,Services to Place,Network Assets Staff,"19,080.00",200304,11959
29/04/2021,ZZH691386,1,12401,NSL Ltd,381600,Vehicle Management Hire/Leasing ,Leasing /Transport Hire,Services to Place,Car Parks Admin,"111,000.00",300304,10005
29/04/2021,ZZH691387,1,683,AECOM Limited,390000,"Works - Construction, Repair & Maintenance  ",Repairs and Maintenance,Services to Place,Car Park Maintenance,"15,876.20",200123,12510
29/04/2021,ZZH691388,1,3292,Reach Publishing Services Ltd,190000,Facilities & Management Services  ,Publicity and Promotion,Services to Place,Highways-Network Man,"28,000.00",401800,11968
29/04/2021,ZZH691389,1,82,Marwood Electrical Company Ltd,390000,"Works - Construction, Repair & Maintenance  ",Capital Expenditure - Works,#N/A,#N/A,"19,463.92",200304,C.01219.203
29/04/2021,ZZH691389,2,82,Marwood Electrical Company Ltd,390000,"Works - Construction, Repair & Maintenance  ",Capital Expenditure - Works,#N/A,#N/A,"47,110.98",200304,C.01219.203
29/04/2021,ZZH691389,3,82,Marwood Electrical Company Ltd,390000,"Works - Construction, Repair & Maintenance  ",Capital Expenditure - Works,#N/A,#N/A,"5,965.53",200304,C.01219.203
29/04/2021,ZZH691390,1,82,Marwood Electrical Company Ltd,390000,"Works - Construction, Repair & Maintenance  ",Capital Expenditure - Works,#N/A,#N/A,"9,732.00",200304,C.01219.203
29/04/2021,ZZH691390,2,82,Marwood Electrical Company Ltd,390000,"Works - Construction, Repair & Maintenance  ",Capital Expenditure - Works,#N/A,#N/A,"47,110.98",200304,C.01219.203
29/04/2021,ZZH691392,1,13510,Children's Therapy Solutions,150000,Consultancy   ,Professional Fees,Services to People,SEN Specific support,"9,000.00",401020,10300
29/04/2021,ZZH691396,1,1978,Lancashire County Council,170000,Education  ,Third party payments - Public Sector,Services to People,OLA pupils,"11,395.00",500304,10371
29/04/2021,ZZH691448,1,14349,madlab,320000,Social Community Care Supplies & Services  ,Care Payments,Corporate and Support Services,POD Workforce Dev,"26,500.00",530356,11888
30/04/2021,ZZH691463,1,909,DWF LLP,280000,Legal Services  ,Legal Fees,Corporate and Support Services,Legal Fees Budget,"1,362.00",401016,12271
30/04/2021,ZZH691463,2,909,DWF LLP,280000,Legal Services  ,Legal Fees,Corporate and Support Services,Legal Fees Budget,"4,044.00",401016,12271
30/04/2021,ZZH691471,1,13084,CORAM,290000,Arts & Leisure Services  ,Publicity and Promotion,Services to People,GMCA CS Grant,"23,311.00",401801,11505
30/04/2021,ZZH691472,1,12024,REMEDI - RESTORATIVE SERVICES,999999,Fees and Charges,Fees and Charges,Services to People,YOS Non-Staffing,"39,896.00",402404,11503
30/04/2021,ZZH691479,1,14617,Leicestershire Partnership NHS,181800,Environmental Services Technical Equipment ,Furniture and Equipment,Services to People,PIP COVID,"7,344.00",400110,13095
30/04/2021,ZZH691479,2,14617,Leicestershire Partnership NHS,181800,Environmental Services Technical Equipment ,Furniture and Equipment,Services to People,PIP COVID,"6,400.00",400110,13095
30/04/2021,ZZH691479,3,14617,Leicestershire Partnership NHS,181800,Environmental Services Technical Equipment ,Furniture and Equipment,Services to People,PIP COVID,800.00,400110,13095
30/04/2021,ZZH691492,1,14236,Coram Voice,261500,Human Resources Training & Conferences ,Fees and Charges,Services to People,CHILDREN PARTCPTN. T,"29,798.92",401024,11498
04/05/2021,ZZH691512,1,9906,SocialSignIn Ltd/Orlo,190000,Facilities & Management Services  ,Office Expenses,Corporate and Support Services,POD Communications,"10,750.00",400710,11323
04/05/2021,ZZH691514,1,4369,Pennine Care NHS Trust,310000,Healthcare  ,Third party payments - Public Sector,Services to People,SC - CAHMS,"100,327.00",500402,11500
04/05/2021,ZZH691524,1,13551,Permanent Futures Ltd,261400,Human Resources Temporary & Agency Staff ,Agency Staff,Corporate and Support Services,Business Intelligenc,"43,000.00",100290,11872
04/05/2021,ZZH691525,1,7025,CBRE Limited,150000,Consultancy   ,Professional Fees,Services to Place,MDC Mayoral DC,"10,500.00",401007,13033
04/05/2021,ZZH691547,1,13451,HM Prison and Probation Servic,320000,Social Community Care Supplies & Services  ,Care Payments,Services to People,YJB Remand Grant,"23,662.00",530325,11487
04/05/2021,ZZH691547,2,13451,HM Prison and Probation Servic,320000,Social Community Care Supplies & Services  ,Care Payments,Services to People,YJB Remand Grant,"6,741.00",530325,11487
04/05/2021,ZZH691547,3,13451,HM Prison and Probation Servic,320000,Social Community Care Supplies & Services  ,Care Payments,Services to People,YJB Remand Grant,"3,210.00",530325,11487
04/05/2021,ZZH691570,1,4369,Pennine Care NHS Trust,999999,UNCLASSIFIED  ,MISCLASSIFIED? CHECK BEFORE PUBLICATION,Services to People,MH Admin East,"6,477.00",100115,12981
04/05/2021,ZZH691580,1,14642,North West Media Ltd,260000,Human Resources  ,Staff Training,Services to People,CADA grant,"20,000.00",102020,13032
05/05/2021,ZZH691621,1,11525,New Local Ltd,200000,Financial Services  ,Fees and Charges,Corporate and Support Services,Strategy & Design,"12,900.00",402401,12642
05/05/2021,ZZH691643,1,12708,Little Giggles Private Day Nur,320000,Social Community Care Supplies & Services  ,Care Payments,Services to People,FP - Fostering Staff,"3,000.00",530356,11489
05/05/2021,ZZH691643,1,12708,Little Giggles Private Day Nur,320000,Social Community Care Supplies & Services  ,Care Payments,Services to People,SHV CSC Locality Lea,"3,000.00",530356,11514
05/05/2021,ZZH691657,1,5276,ESE Ltd,182020,Environmental Services Waste Management,Waste Management Equipment,Services to Place,Wheelie Bins,"10,740.80",400401,10864
06/05/2021,ZZH691684,1,7820,GMCA - GMUTC,390000,"Works - Construction, Repair & Maintenance  ",Capital Expenditure - Works,#N/A,#N/A,"26,500.00",200304,C.01389.203
06/05/2021,ZZH691690,1,13451,HM Prison and Probation Servic,320000,Social Community Care Supplies & Services  ,Care Payments,Services to People,YJB Remand Grant,"95,000.00",530325,11487
06/05/2021,ZZH691703,1,11162,Kenny Waste Management Ltd,210000,Furniture & Soft Furnishings  ,Furniture and Equipment,Services to Place,Highfield Cemetery,"1,768.00",400115,11282
06/05/2021,ZZH691703,2,11162,Kenny Waste Management Ltd,210000,Furniture & Soft Furnishings  ,Furniture and Equipment,Services to Place,Highfield Cemetery,"7,673.90",400115,11282
07/05/2021,ZZH691730,1,13223,A Pacini Ltd,261400,Human Resources Temporary & Agency Staff ,Agency Staff,Services to Place,Property Client Acct,"5,089.05",100290,12328
07/05/2021,ZZH691731,1,13860,Howard Lynn Property Ltd,261400,Human Resources Temporary & Agency Staff ,Agency Staff,Services to Place,Property Client Acct,"6,300.00",100290,12328
07/05/2021,ZZH691739,1,13596,STOCKPORT PROGRESS AND RECOVER,999999,Fees and Charges,Fees and Charges,Services to People,SPARC,"180,000.00",402404,11674
10/05/2021,ZZH691780,1,1722,The Together Trust Centre,320000,Social Community Care Supplies & Services  ,Care Payments,Services to People,DP - Respite,"12,190.20",530335,11513
10/05/2021,ZZH691806,1,7820,GMCA - GMUTC,391200,"Works - Construction, Repair & Maintenance Engineering ",Professional Fees,#N/A,#N/A,"27,775.57",401032,C.01270.201
10/05/2021,ZZH691807,1,6967,Wilde Consultants Ltd,390000,Supplies and services,Supplies and services,#N/A,#N/A,"26,166.25",401600,C.00403
10/05/2021,ZZH691809,1,82,Marwood Electrical Company Ltd,390000,"Works - Construction, Repair & Maintenance  ",Capital Expenditure - Works,#N/A,#N/A,"21,149.26",200304,C.01197.203
10/05/2021,ZZH691809,2,82,Marwood Electrical Company Ltd,390000,"Works - Construction, Repair & Maintenance  ",Capital Expenditure - Works,#N/A,#N/A,"79,204.40",200304,C.01197.203
10/05/2021,ZZH691809,3,82,Marwood Electrical Company Ltd,390000,"Works - Construction, Repair & Maintenance  ",Capital Expenditure - Works,#N/A,#N/A,"7,087.20",200304,C.01197.203
10/05/2021,ZZH691809,4,82,Marwood Electrical Company Ltd,390000,"Works - Construction, Repair & Maintenance  ",Capital Expenditure - Works,#N/A,#N/A,"3,313.53",200304,C.01197.203
10/05/2021,ZZH691809,5,82,Marwood Electrical Company Ltd,390000,"Works - Construction, Repair & Maintenance  ",Capital Expenditure - Works,#N/A,#N/A,"3,915.99",200304,C.01197.203
10/05/2021,ZZH691809,6,82,Marwood Electrical Company Ltd,390000,"Works - Construction, Repair & Maintenance  ",Capital Expenditure - Works,#N/A,#N/A,"7,430.34",200304,C.01197.203
10/05/2021,ZZH691809,7,82,Marwood Electrical Company Ltd,390000,"Works - Construction, Repair & Maintenance  ",Capital Expenditure - Works,#N/A,#N/A,"32,270.70",200304,C.01197.203
10/05/2021,ZZH691809,8,82,Marwood Electrical Company Ltd,390000,"Works - Construction, Repair & Maintenance  ",Capital Expenditure - Works,#N/A,#N/A,"2,190.76",200304,C.01197.203
10/05/2021,ZZH691809,9,82,Marwood Electrical Company Ltd,390000,"Works - Construction, Repair & Maintenance  ",Capital Expenditure - Works,#N/A,#N/A,"8,173.22",200304,C.01197.203
10/05/2021,ZZH691809,10,82,Marwood Electrical Company Ltd,390000,"Works - Construction, Repair & Maintenance  ",Capital Expenditure - Works,#N/A,#N/A,"2,510.25",200304,C.01197.203
10/05/2021,ZZH691811,1,683,AECOM Limited,150000,Consultancy   ,Professional Fees,#N/A,#N/A,"16,081.00",401007,C.01314.201
10/05/2021,ZZH691832,1,14624,E.on next Energy Ltd,370000,Utilities   ,Utilities,Services to Place,St Peter's Square,"8,500.00",200510,11979
10/05/2021,ZZH691839,1,628,Life Leisure,999999,Social Community Care Supplies & Services  ,Service Contract Payments,Services to People,PH-Lifestyles,"206,619.00",561704,12737
11/05/2021,ZZH691846,1,13674,Krishan Singh,290000,Arts & Leisure Services  ,Publicity and Promotion,Services to People,GMCA CS Grant,"15,000.00",401801,11505
11/05/2021,ZZH691847,1,12686,Di Clarke,999999,Fees and Charges,Fees and Charges,Services to People,Yth Justice EarlyInt,"10,000.00",402404,11787
11/05/2021,ZZH691883,1,3529,Totally Local Company Ltd,390000,Supplies and services,Supplies and services,#N/A,#N/A,"39,582.74",401600,C.01389.203
11/05/2021,ZZH691884,1,1722,The Together Trust Centre,320000,Social Community Care Supplies & Services  ,Care Payments,Services to People,DP - Respite,"28,272.00",530335,11513
11/05/2021,ZZH691900,1,909,DWF LLP,280000,Legal Services  ,Legal Fees,Corporate and Support Services,Legal Fees Budget,"5,029.50",401016,12271
11/05/2021,ZZH691907,1,13225,Pertemps Professional Recruitm,#N/A,#N/A,#N/A,Services to People,ITT Hospital SW,"5,000.00",100999,12994
13/05/2021,ZZH691979,1,14476,One School Global,261500,Human Resources Training & Conferences ,Fees and Charges,Services to People,SEN Specific support,"6,487.00",401024,10300
13/05/2021,ZZH691983,1,10753,APS GROUP,191600,Facilities & Management Services Printing ,Printing and Photocopying,Corporate and Support Services,Driver Assessment,"13,351.00",400800,11113
13/05/2021,ZZH691987,1,3529,Totally Local Company Ltd,390000,"Works - Construction, Repair & Maintenance  ",Repairs and Maintenance,Services to Place,Car Park Maintenance,"8,064.00",200123,12510
13/05/2021,ZZH691993,1,683,AECOM Limited,390000,Supplies and services,Supplies and services,#N/A,#N/A,"7,298.80",401600,C.01265.201
13/05/2021,ZZH691995,1,13338,Britannic Technologies Ltd,270000,Information Communication Technology  ,Information and Communications Technology,Corporate and Support Services,Contact Centre & FPH,"43,000.00",402010,11065
13/05/2021,ZZH692002,1,2295,P McGuinness and Co Ltd,390000,"Works - Construction, Repair & Maintenance  ",Repairs and Maintenance,#N/A,#N/A,"12,431.50",200181,C.10906
13/05/2021,ZZH692027,1,9149,Public-i,270000,Information Communication Technology  ,Information and Communications Technology,Corporate and Support Services,Members Services,"14,560.00",402001,11111
13/05/2021,ZZH692040,1,4463,Reach Publishing Serv (MEN),190000,Facilities & Management Services  ,Publicity and Promotion,Services to Place,Policy-Rights Of Way,"5,000.00",401800,10088
13/05/2021,ZZH692041,1,3529,Totally Local Company Ltd,390000,Supplies and services,Supplies and services,#N/A,#N/A,"16,914.12",401600,C.00403
14/05/2021,ZZH692050,1,6748,GEORGE COX & SONS LTD,390000,Supplies and services,Supplies and services,#N/A,#N/A,"190,482.38",401600,C.01323.203
14/05/2021,ZZH692054,1,11860,DATA SPACE (UK) Ltd,190000,Facilities & Management Services  ,Office Expenses,Corporate and Support Services,Info & Governance,"12,000.00",400703,11146
14/05/2021,ZZH692081,1,7025,CBRE Limited,150000,Consultancy   ,Professional Fees,Services to Place,Merseyway Shop Ctre,"2,500.00",401020,12866
14/05/2021,ZZH692081,2,7025,CBRE Limited,150000,Consultancy   ,Professional Fees,Services to Place,Merseyway Shop Ctre,"1,500.00",401020,12866
14/05/2021,ZZH692081,3,7025,CBRE Limited,150000,Consultancy   ,Professional Fees,Services to Place,Merseyway Shop Ctre,"1,500.00",401020,12866
14/05/2021,ZZH692081,4,7025,CBRE Limited,150000,Consultancy   ,Professional Fees,Services to Place,Merseyway Shop Ctre,"1,500.00",401020,12866
14/05/2021,ZZH692081,5,7025,CBRE Limited,150000,Consultancy   ,Professional Fees,Services to Place,Merseyway Shop Ctre,"2,500.00",401020,12866
14/05/2021,ZZH692081,6,7025,CBRE Limited,150000,Consultancy   ,Professional Fees,Services to Place,Merseyway Shop Ctre,"3,050.00",401020,12866
14/05/2021,ZZH692081,7,7025,CBRE Limited,150000,Consultancy   ,Professional Fees,Services to Place,Merseyway Shop Ctre,"1,500.00",401020,12866
17/05/2021,ZZH692095,1,13109,4 Mental Health Ltd,999999,Social Community Care Supplies & Services  ,Service Contract Payments,Services to People,PH-Mental Wellbeing,"6,000.00",561704,12734
17/05/2021,ZZH692101,1,7296,Allpay-Net Ltd,999999,Financial Services,Bank Charges,Corporate and Support Services,U-Misc Fin-Corp Mang,"60,000.00",601403,10971
17/05/2021,ZZH692107,1,62,Insight Direct (UK) Ltd,270000,Information Communication Technology  ,Information and Communications Technology,Corporate and Support Services,IT School,"15,971.58",402010,11418
17/05/2021,ZZH692107,1,62,Insight Direct (UK) Ltd,270000,Information Communication Technology  ,Information and Communications Technology,Corporate and Support Services,IT School,"39,543.15",402003,11418
17/05/2021,ZZH692107,2,62,Insight Direct (UK) Ltd,270000,Information Communication Technology  ,Information and Communications Technology,Corporate and Support Services,IT School,"15,971.58",402010,11418
17/05/2021,ZZH692107,3,62,Insight Direct (UK) Ltd,270000,Information Communication Technology  ,Information and Communications Technology,Corporate and Support Services,IT School,"15,971.58",402010,11418
17/05/2021,ZZH692122,1,12806,District Valuation Service,150000,Consultancy   ,Professional Fees,Services to Place,Planning,"6,500.00",401007,12150
17/05/2021,ZZH692123,1,14236,Coram Voice,150000,Consultancy   ,Professional Fees,Services to People,CHILDREN PARTCPTN. T,"22,349.19",401020,11498
17/05/2021,ZZH692124,1,7820,GMCA - GMUTC,230000,Highway Equipment & Materials�   ,Highways Maintenance,#N/A,#N/A,"42,382.23",202054,C.01365.203
17/05/2021,ZZH692130,1,12959,Apollo Home Healtcare,310000,Healthcare  ,Third party payments - Public Sector,Services to People,SEN Specific support,"14,332.50",500402,10300
17/05/2021,ZZH692131,1,13703,St Ralph Sherwin Catholic Mult,261500,Human Resources Training & Conferences ,Fees and Charges,Services to People,OLA pupils,"5,431.67",401024,10371
17/05/2021,ZZH692134,1,2927,XMA Ltd,270000,Information Communication Technology  ,Information and Communications Technology,Services to People,INT C Staffing,"5,518.50",402001,12896
17/05/2021,ZZH692134,2,2927,XMA Ltd,270000,Information Communication Technology  ,Information and Communications Technology,Services to People,INT C Staffing,35.00,402001,12896
17/05/2021,ZZH692134,3,2927,XMA Ltd,270000,Information Communication Technology  ,Information and Communications Technology,Services to People,INT C Staffing,35.00,402001,12896
17/05/2021,ZZH692134,4,2927,XMA Ltd,270000,Information Communication Technology  ,Information and Communications Technology,Services to People,INT C Staffing,122.20,402001,12896
18/05/2021,ZZH692163,1,6170,Greater Manchester TreeStation,390000,Supplies and services,Supplies and services,Services to Place,Emergency Tree Works,"9,995.00",401600,11168
18/05/2021,ZZH692164,1,3529,Totally Local Company Ltd,390000,Supplies and services,Supplies and services,Services to Place,Land Dev-Werneth Os,"6,983.00",401600,11280
18/05/2021,ZZH692192,1,3529,Totally Local Company Ltd,240000,Horticultural  ,Grounds Maintenance,Services to Place,Policy-Rights Of Way,"5,000.00",202030,10088
19/05/2021,ZZH692224,1,35,CBC Computer Systems Ltd,320000,Social Community Care Supplies & Services  ,Care Payments,Corporate and Support Services,IT Infrastructure,"3,908.85",530356,11324
19/05/2021,ZZH692224,2,35,CBC Computer Systems Ltd,320000,Social Community Care Supplies & Services  ,Care Payments,Corporate and Support Services,IT Infrastructure,621.00,530356,11324
19/05/2021,ZZH692224,3,35,CBC Computer Systems Ltd,320000,Social Community Care Supplies & Services  ,Care Payments,Corporate and Support Services,IT Infrastructure,"6,279.00",530356,11324
19/05/2021,ZZH692227,1,8696,Chubb Security,181800,Environmental Services Technical Equipment ,Furniture and Equipment,Services to People,"Aids, Equip & Maint",350.00,400110,11658
19/05/2021,ZZH692227,2,8696,Chubb Security,181800,Environmental Services Technical Equipment ,Furniture and Equipment,Services to People,"Aids, Equip & Maint",240.00,400110,11658
19/05/2021,ZZH692227,3,8696,Chubb Security,181800,Environmental Services Technical Equipment ,Furniture and Equipment,Services to People,"Aids, Equip & Maint","1,485.00",400110,11658
19/05/2021,ZZH692227,4,8696,Chubb Security,181800,Environmental Services Technical Equipment ,Furniture and Equipment,Services to People,"Aids, Equip & Maint","3,960.00",400110,11658
19/05/2021,ZZH692240,1,3529,Totally Local Company Ltd,390000,Supplies and services,Supplies and services,#N/A,#N/A,"132,253.74",401600,C.01367.201
19/05/2021,ZZH692241,1,3529,Totally Local Company Ltd,390000,Supplies and services,Supplies and services,#N/A,#N/A,"11,098.40",401600,C.01369.201
19/05/2021,ZZH692251,1,3529,Totally Local Company Ltd,180000,Environmental Services  ,Cleaning,Services to Place,Neighbourhoods Team,"15,416.00",201603,10900
19/05/2021,ZZH692261,1,12533,Priory Group - Northern Office,310000,Healthcare  ,Third party payments - Public Sector,Services to People,Hospital Tuition,"13,200.00",500402,10370
20/05/2021,ZZH692281,1,11932,THOMSON REUTERS LTD,171113,Education Library Books ,Library Equipment,Corporate and Support Services,Legal Services,"34,784.40",400202,11117
21/05/2021,ZZH692356,1,176,Lexis Nexis UK,200000,Financial Services  ,Fees and Charges,Services to Place,Commercial Standards,"10,090.80",402401,10913
21/05/2021,ZZH692357,1,10384,Phillip Cleaton - Locksmith,390000,"Works - Construction, Repair & Maintenance  ",Repairs and Maintenance,Services to Place,Safer Partnerships,"12,000.00",200123,11088
21/05/2021,ZZH692358,1,14240,Fast Entry Lock Smiths Ltd,999999,Fees and Charges,Fees and Charges,Services to Place,Safer Partnerships,"5,000.00",401035,11088
21/05/2021,ZZH692361,1,3529,Totally Local Company Ltd,390000,Supplies and services,Supplies and services,#N/A,#N/A,"7,335.02",401600,C.01365.201
21/05/2021,ZZH692362,1,3529,Totally Local Company Ltd,390000,Supplies and services,Supplies and services,#N/A,#N/A,"16,914.12",401600,C.00403
21/05/2021,ZZH692363,1,3529,Totally Local Company Ltd,390000,Supplies and services,Supplies and services,#N/A,#N/A,"9,204.57",401600,C.01365.201
24/05/2021,ZZH692378,1,3529,Totally Local Company Ltd,240000,Horticultural  ,Grounds Maintenance,Services to Place,Policy-Rights Of Way,"20,000.00",202030,10088
24/05/2021,ZZH692379,1,3529,Totally Local Company Ltd,240000,Horticultural  ,Grounds Maintenance,Services to Place,Policy-Rights Of Way,"15,000.00",202030,10088
24/05/2021,ZZH692385,1,11782,Time Specialist Support,320000,Social Community Care Supplies & Services  ,Care Payments,Services to People,DP - Respite,"6,240.00",530335,11513
24/05/2021,ZZH692386,1,1339,Stockport NHS Foundation Trust,310000,Healthcare  ,Third party payments - Public Sector,Services to People,DP - CEAS,"99,925.00",500401,12189
24/05/2021,ZZH692403,1,1339,Stockport NHS Foundation Trust,310000,Healthcare  ,Third party payments - Public Sector,Services to People,SEN Specific support,"44,233.00",500402,10300
24/05/2021,ZZH692404,1,1572,Theraposture Ltd,181800,Environmental Services Technical Equipment ,Furniture and Equipment,Services to People,DP - CEAS,"6,891.30",400110,12189
24/05/2021,ZZH692404,2,1572,Theraposture Ltd,181800,Environmental Services Technical Equipment ,Furniture and Equipment,Services to People,DP - CEAS,396.00,400110,12189
24/05/2021,ZZH692404,3,1572,Theraposture Ltd,181800,Environmental Services Technical Equipment ,Furniture and Equipment,Services to People,DP - CEAS,666.00,400110,12189
24/05/2021,ZZH692404,4,1572,Theraposture Ltd,181800,Environmental Services Technical Equipment ,Furniture and Equipment,Services to People,DP - CEAS,180.00,400110,12189
24/05/2021,ZZH692404,5,1572,Theraposture Ltd,181800,Environmental Services Technical Equipment ,Furniture and Equipment,Services to People,DP - CEAS,864.00,400110,12189
24/05/2021,ZZH692404,6,1572,Theraposture Ltd,181800,Environmental Services Technical Equipment ,Furniture and Equipment,Services to People,DP - CEAS,180.00,400110,12189
24/05/2021,ZZH692404,7,1572,Theraposture Ltd,181800,Environmental Services Technical Equipment ,Furniture and Equipment,Services to People,DP - CEAS,185.00,400110,12189
24/05/2021,ZZH692431,1,7820,GMCA - GMUTC,230000,Highway Equipment & Materials�   ,Highways Maintenance,#N/A,#N/A,"39,200.00",202054,C.01368.203
25/05/2021,ZZH692453,1,14663,CHILD ACTION NORTHWEST,999999,Fees and Charges,Fees and Charges,Services to People,YOS Non-Staffing,"5,000.00",402404,11503
25/05/2021,ZZH692461,1,1644,Tameside MBC,260000,Human Resources  ,Staff Training,Corporate and Support Services,IT Main,"7,460.00",102020,11073
25/05/2021,ZZH692472,1,628,Life Leisure,150000,Consultancy   ,Professional Fees,Services to People,SS-SSCO Partnership,"5,353.00",401020,10716
26/05/2021,ZZH692490,1,2927,XMA Ltd,270000,Information Communication Technology  ,Information and Communications Technology,Corporate and Support Services,Public Libraries Gen,"1,103.70",402002,11329
26/05/2021,ZZH692490,2,2927,XMA Ltd,270000,Information Communication Technology  ,Information and Communications Technology,Corporate and Support Services,Public Libraries Gen,7.00,402002,11329
26/05/2021,ZZH692490,3,2927,XMA Ltd,270000,Information Communication Technology  ,Information and Communications Technology,Corporate and Support Services,Public Libraries Gen,7.00,402002,11329
26/05/2021,ZZH692490,4,2927,XMA Ltd,270000,Information Communication Technology  ,Information and Communications Technology,Corporate and Support Services,Public Libraries Gen,24.44,402002,11329
26/05/2021,ZZH692490,5,2927,XMA Ltd,270000,Information Communication Technology  ,Information and Communications Technology,Corporate and Support Services,Public Libraries Gen,"3,088.80",402002,11329
26/05/2021,ZZH692490,6,2927,XMA Ltd,270000,Information Communication Technology  ,Information and Communications Technology,Corporate and Support Services,Public Libraries Gen,"1,440.00",402002,11329
26/05/2021,ZZH692491,1,35,CBC Computer Systems Ltd,270000,Information Communication Technology  ,Information and Communications Technology,Corporate and Support Services,Public Libraries Gen,"6,075.00",402002,11329
26/05/2021,ZZH692491,2,35,CBC Computer Systems Ltd,270000,Information Communication Technology  ,Information and Communications Technology,Corporate and Support Services,Public Libraries Gen,52.50,402002,11329
26/05/2021,ZZH692491,3,35,CBC Computer Systems Ltd,270000,Information Communication Technology  ,Information and Communications Technology,Corporate and Support Services,Public Libraries Gen,"1,901.25",402002,11329
26/05/2021,ZZH692491,4,35,CBC Computer Systems Ltd,270000,Information Communication Technology  ,Information and Communications Technology,Corporate and Support Services,Public Libraries Gen,470.00,402002,11329
26/05/2021,ZZH692491,5,35,CBC Computer Systems Ltd,270000,Information Communication Technology  ,Information and Communications Technology,Corporate and Support Services,Public Libraries Gen,43.90,402002,11329
26/05/2021,ZZH692494,1,3529,Totally Local Company Ltd,390000,Supplies and services,Supplies and services,#N/A,#N/A,"77,913.53",401600,C.01317.203
26/05/2021,ZZH692504,1,7802,Craemer UK Ltd,182020,Environmental Services Waste Management,Waste Management Equipment,Services to Place,Wheelie Bins,"14,280.00",400401,10864
26/05/2021,ZZH692504,2,7802,Craemer UK Ltd,182020,Environmental Services Waste Management,Waste Management Equipment,Services to Place,Wheelie Bins,"9,628.50",400401,10864
26/05/2021,ZZH692511,1,683,AECOM Limited,240000,Horticultural  ,Grounds Maintenance,Services to Place,Policy-Rights Of Way,"6,730.00",202030,10088
27/05/2021,ZZH692527,1,14667,Environmental Health on the Mo,150000,Consultancy   ,Professional Fees,Services to Place,Premises Licensing,"23,000.00",401020,10915
27/05/2021,ZZH692532,1,10867,ABL Health Ltd,320000,Social Community Care Supplies & Services  ,Care Payments,Services to People,DP - Respite,"39,412.00",530335,11513
27/05/2021,ZZH692533,1,10867,ABL Health Ltd,320000,Social Community Care Supplies & Services  ,Care Payments,Services to People,DP - Respite,"42,900.00",530335,11513
27/05/2021,ZZH692550,1,12868,Anne Cresswell Parenting,290000,Arts & Leisure Services  ,Publicity and Promotion,Services to People,Start Well Runn Cost,"5,000.00",401801,12881
27/05/2021,ZZH692619,1,3529,Totally Local Company Ltd,390000,Supplies and services,Supplies and services,#N/A,#N/A,"6,860.00",401600,C.01317.203
28/05/2021,ZZH692632,1,7820,GMCA - GMUTC,390000,"Works - Construction, Repair & Maintenance  ",Capital Expenditure - Works,#N/A,#N/A,"12,200.05",200304,C.00403
28/05/2021,ZZH692672,1,6116,Atkins Limited,150000,Consultancy   ,Professional Fees,Services to Place,Feasibility,"39,824.00",401020,13062
28/05/2021,ZZH692673,1,6116,Atkins Limited,150000,Consultancy   ,Professional Fees,Services to Place,Feasibility,"37,728.00",401020,13062
28/05/2021,ZZH692674,1,6116,Atkins Limited,150000,Consultancy   ,Professional Fees,Services to Place,Feasibility,"25,938.00",401020,13062
28/05/2021,ZZH692675,1,6116,Atkins Limited,150000,Consultancy   ,Professional Fees,Services to Place,Feasibility,"26,961.12",401020,13062
28/05/2021,ZZH692676,1,683,AECOM Limited,150000,Consultancy   ,Professional Fees,Services to Place,Feasibility,"19,608.48",401020,13062
28/05/2021,ZZH692677,1,683,AECOM Limited,150000,Consultancy   ,Professional Fees,Services to Place,Feasibility,"30,088.80",401020,13062
28/05/2021,ZZH692678,1,6116,Atkins Limited,150000,Consultancy   ,Professional Fees,Services to Place,Feasibility,"45,116.40",401020,13062
28/05/2021,ZZH692679,1,683,AECOM Limited,150000,Consultancy   ,Professional Fees,Services to Place,Feasibility,"21,600.00",401020,13062
28/05/2021,ZZH692680,1,683,AECOM Limited,150000,Consultancy   ,Professional Fees,Services to Place,Feasibility,"19,608.48",401020,13062
28/05/2021,ZZH692681,1,683,AECOM Limited,150000,Consultancy   ,Professional Fees,Services to Place,Feasibility,"53,827.20",401020,13062
28/05/2021,ZZH692682,1,683,AECOM Limited,150000,Consultancy   ,Professional Fees,Services to Place,Feasibility,"19,936.00",401020,13062
28/05/2021,ZZH692683,1,10997,Manchester Digital Laboratory,320000,Social Community Care Supplies & Services  ,Care Payments,Corporate and Support Services,POD Workforce Dev,"26,500.00",530356,11888
28/05/2021,ZZH692684,1,9567,Frontline Data ltd,270000,Information Communication Technology  ,Information and Communications Technology,Corporate and Support Services,Traded Services,"15,490.00",402001,11735
01/06/2021,ZZH692713,1,1799,Stockport Homes,#N/A,#N/A,#N/A,Services to People,COVID Winter Grant,"10,000.00",500999,13096
01/06/2021,ZZH692733,1,1382,Pure Innovations Ltd,150000,Consultancy   ,Professional Fees,Services to People,SC - Leaving Care,"47,400.00",401020,11501
02/06/2021,ZZH692762,1,14238,Big White Wall Ltd,150000,Consultancy   ,Professional Fees,Services to People,iBCF,"57,962.50",401020,13000
02/06/2021,ZZH692798,1,8646,MPH INSPECTION SERVICES,350000,Street & Traffic Management  ,Fixtures and Fittings,Services to Place,Struc Test of Column,"13,000.00",201202,11995
02/06/2021,ZZH692799,1,8646,MPH INSPECTION SERVICES,350000,Street & Traffic Management  ,Fixtures and Fittings,Services to Place,Struct Test of Signs,"43,000.00",201202,12028
02/06/2021,ZZH692801,1,8646,MPH INSPECTION SERVICES,350000,Street & Traffic Management  ,Fixtures and Fittings,Services to Place,Struct Test of Signs,"20,000.00",201202,12028
02/06/2021,ZZH692802,1,6967,Wilde Consultants Ltd,150000,Consultancy   ,Professional Fees,Services to Place,Network Assets Staff,"12,600.00",401020,11959
02/06/2021,ZZH692803,1,6116,Atkins Limited,200000,Financial Services  ,Fees and Charges,Services to Place,Highways-Network Man,"44,707.68",401202,11968
02/06/2021,ZZH692804,1,6116,Atkins Limited,390000,Supplies and services,Supplies and services,#N/A,#N/A,"40,296.96",401600,C.00466.201
02/06/2021,ZZH692810,1,1583,Tunstall Healthcare (UK) Ltd,210000,Furniture & Soft Furnishings  ,Furniture and Equipment,#N/A,#N/A,"3,000.00",400105,C.00777
02/06/2021,ZZH692810,2,1583,Tunstall Healthcare (UK) Ltd,210000,Furniture & Soft Furnishings  ,Furniture and Equipment,#N/A,#N/A,"1,632.00",400105,C.00777
02/06/2021,ZZH692810,3,1583,Tunstall Healthcare (UK) Ltd,210000,Furniture & Soft Furnishings  ,Furniture and Equipment,#N/A,#N/A,"1,300.00",400105,C.00777
03/06/2021,ZZH692832,1,3529,Totally Local Company Ltd,181800,Environmental Services Technical Equipment ,Furniture and Equipment,#N/A,#N/A,"15,358.25",400110,C.01327.201
03/06/2021,ZZH692836,1,10105,Mastercall Healthcare,390000,Supplies and services,Supplies and services,Services to People,PH-Communities,"51,000.00",401600,12738
03/06/2021,ZZH692840,1,4369,Pennine Care NHS Trust,999999,Social Community Care Supplies & Services  ,Service Contract Payments,Services to People,PH-Drug & Alcohol,"1,380,630.00",561704,12731
03/06/2021,ZZH692841,1,12237,"CGL (Change, Grow, Live)",999999,Social Community Care Supplies & Services  ,Service Contract Payments,Services to People,PH-Drug & Alcohol,"204,467.00",561704,12731
03/06/2021,ZZH692842,1,12237,"CGL (Change, Grow, Live)",999999,Social Community Care Supplies & Services  ,Service Contract Payments,Services to People,PH-Drug & Alcohol,"512,560.00",561704,12731
05/06/2021,ZZH692939,1,14669,Sapphire Utility Solutions Ltd,230000,Highway Equipment & Materials�   ,Highways Maintenance,Services to Place,Drainage Works,"9,010.00",202052,12681
07/06/2021,ZZH692963,1,6748,GEORGE COX & SONS LTD,390000,Supplies and services,Supplies and services,#N/A,#N/A,"50,250.00",401600,C.01179.203
07/06/2021,ZZH692983,1,1900,Broxap Ltd,350000,Street & Traffic Management  ,Fixtures and Fittings,Services to Place,Public Realm Inspect,"25,110.00",201202,10879
07/06/2021,ZZH692990,1,13860,Howard Lynn Property Ltd,261400,Human Resources Temporary & Agency Staff ,Agency Staff,Services to Place,Property Client Acct,"5,985.00",100290,12328
08/06/2021,ZZH692996,1,5292,NPOWER (Electricity),370000,Utilities   ,Utilities,Services to Place,Street Lighting Ener,"1,800,000.00",200514,12031
08/06/2021,ZZH692997,1,6748,GEORGE COX & SONS LTD,390000,Supplies and services,Supplies and services,#N/A,#N/A,"747,971.07",401600,C.01317.203
08/06/2021,ZZH693042,1,3529,Totally Local Company Ltd,240000,Horticultural  ,Grounds Maintenance,Services to Place,Play,"6,245.00",202032,11267
08/06/2021,ZZH693044,1,6940,IAE,240000,Horticultural  ,Grounds Maintenance,Services to Place,Play,"5,164.75",202032,11267
08/06/2021,ZZH693055,1,3529,Totally Local Company Ltd,390000,Supplies and services,Supplies and services,#N/A,#N/A,"6,451.00",401600,C.00466.201
08/06/2021,ZZH693057,1,6967,Wilde Consultants Ltd,150000,Consultancy   ,Professional Fees,Services to Place,Highways-Network Man,"38,160.00",401007,11968
09/06/2021,ZZH693092,1,14677,Melland High School BFET,170000,Education  ,Third party payments - Public Sector,Services to People,OLA pupils,"33,987.33",500304,10371
11/06/2021,ZZH693177,1,14040,Puss Bank School & Nursery,170000,Education  ,Third party payments - Public Sector,Services to People,OLA pupils,"8,392.00",500304,10371
11/06/2021,ZZH693177,2,14040,Puss Bank School & Nursery,170000,Education  ,Third party payments - Public Sector,Services to People,OLA pupils,"8,392.00",500304,10371
14/06/2021,ZZH693207,1,5276,ESE Ltd,182020,Environmental Services Waste Management,Waste Management Equipment,Services to Place,Wheelie Bins,"13,303.50",400401,10864
14/06/2021,ZZH693208,1,3529,Totally Local Company Ltd,240000,Horticultural  ,Grounds Maintenance,#N/A,#N/A,"11,497.20",202032,C.00658
14/06/2021,ZZH693209,1,223,Groundwork Landscapes Ltd,240000,Horticultural  ,Grounds Maintenance,#N/A,#N/A,"32,775.00",202032,C.00658
14/06/2021,ZZH693221,1,3529,Totally Local Company Ltd,390000,Supplies and services,Supplies and services,#N/A,#N/A,"6,466.09",401600,C.01368.203
14/06/2021,ZZH693226,1,14570,Bevan Care,320000,Social Community Care Supplies & Services  ,Care Payments,Services to People,DP - Respite,"10,069.00",530335,11513
14/06/2021,ZZH693245,1,12608,Liquidlogic Limited,270000,Information Communication Technology  ,Information and Communications Technology,Services to People,SG - Child Prot-Safe,"5,894.00",402001,11425
14/06/2021,ZZH693250,1,1644,Tameside MBC,999999,Third party payments - Public Sector,Third party payments - Public Sector,Services to People,Adults Management,"50,000.00",500303,11873
14/06/2021,ZZH693268,1,14669,Sapphire Utility Solutions Ltd,230000,Highway Equipment & Materials�   ,Highways Maintenance,Services to Place,Drainage Works,"9,010.00",202052,12681
15/06/2021,ZZH693279,1,14344,Rizq Consultancy Services,150000,Consultancy   ,Professional Fees,Services to People,AOM costs,"58,658.00",401007,11878
15/06/2021,ZZH693285,1,13451,HM Prison and Probation Servic,320000,Social Community Care Supplies & Services  ,Care Payments,Services to People,YJB Remand Grant,"22,590.00",530325,11487
15/06/2021,ZZH693314,1,6967,Wilde Consultants Ltd,390000,Supplies and services,Supplies and services,#N/A,#N/A,"24,957.00",401600,C.00403
16/06/2021,ZZH693342,1,3529,Totally Local Company Ltd,390000,Supplies and services,Supplies and services,#N/A,#N/A,"9,986.86",401600,C.01368.203
16/06/2021,ZZH693347,1,3529,Totally Local Company Ltd,390000,Supplies and services,Supplies and services,#N/A,#N/A,"182,202.61",401600,C.01368.203
16/06/2021,ZZH693372,1,7472,Oldham Council,999999,Third party payments - Public Sector,Third party payments - Public Sector,Corporate and Support Services,POD Core Staffing,"7,448.00",500303,12590
16/06/2021,ZZH693374,1,12937,City in the Community Foundati,290000,Arts & Leisure Services  ,Publicity and Promotion,Services to People,GMCA CS Grant,"8,000.00",401801,11505
16/06/2021,ZZH693375,1,12856,Manchester United Foundation,290000,Arts & Leisure Services  ,Publicity and Promotion,Services to People,GMCA CS Grant,"8,000.00",401801,11505
16/06/2021,ZZH693376,1,8018,STOCKPORT COUNTY COMMUNITY FOU,290000,Arts & Leisure Services  ,Publicity and Promotion,Services to People,GMCA CS Grant,"10,873.50",401801,11505
16/06/2021,ZZH693377,1,12619,Sue Hawkins,999999,Fees and Charges,Fees and Charges,Services to People,YOS Non-Staffing,"10,000.00",402404,11503
16/06/2021,ZZH693378,1,13451,HM Prison and Probation Servic,320000,Social Community Care Supplies & Services  ,Care Payments,Services to People,YJB Remand Grant,"50,000.00",530325,11487
17/06/2021,ZZH693390,1,3529,Totally Local Company Ltd,390000,"Works - Construction, Repair & Maintenance  ",Repairs and Maintenance,Services to Place,SPB - Investment Est,"11,395.84",200181,10062
17/06/2021,ZZH693409,1,7025,CBRE Limited,150000,Consultancy   ,Professional Fees,Services to Place,Leisure Level Up Fun,"32,860.00",401020,13124
17/06/2021,ZZH693428,1,3529,Totally Local Company Ltd,240000,Horticultural  ,Grounds Maintenance,#N/A,#N/A,"34,001.98",202032,C.01451.203
17/06/2021,ZZH693429,1,3529,Totally Local Company Ltd,240000,Horticultural  ,Grounds Maintenance,Services to People,P.E-Maint Play Field,"16,293.13",202030,10852
18/06/2021,ZZH693461,1,683,AECOM Limited,150000,Consultancy   ,Professional Fees,#N/A,#N/A,"25,034.10",401007,C.01269.201
18/06/2021,ZZH693462,1,3529,Totally Local Company Ltd,390000,Supplies and services,Supplies and services,#N/A,#N/A,"173,979.43",401600,C.01365.201
18/06/2021,ZZH693496,1,628,Life Leisure,320000,Social Community Care Supplies & Services  ,Care Payments,Services to People,EP - Residential,"8,000.00",530351,11449
18/06/2021,ZZH693500,1,8106,Tarmac Trading Ltd,390000,Supplies and services,Supplies and services,#N/A,#N/A,"35,847.42",401600,C.01367.203
18/06/2021,ZZH693502,1,6748,GEORGE COX & SONS LTD,390000,Supplies and services,Supplies and services,#N/A,#N/A,"81,431.77",401600,C.01373.203
21/06/2021,ZZH693515,1,14682,SME HCI Ltd (trading as Vivup),181800,Environmental Services Technical Equipment ,Furniture and Equipment,Corporate and Support Services,POD Core Staffing,"200,000.00",400110,12590
21/06/2021,ZZH693526,1,8929,P88024 Gatley Medical Centre (,320000,Social Community Care Supplies & Services  ,Care Payments,Services to People,PH-Lifestyles,"3,539.00",530348,12737
21/06/2021,ZZH693526,2,8929,P88024 Gatley Medical Centre (,320000,Social Community Care Supplies & Services  ,Care Payments,Services to People,PH-Lifestyles,"1,527.00",530348,12737
21/06/2021,ZZH693526,3,8929,P88024 Gatley Medical Centre (,999999,Fees and Charges,Fees and Charges,Services to People,PH-Sexual Health LES,"3,636.00",401035,12748
21/06/2021,ZZH693538,1,3789,"P88043 Brinnington Surgery, Br",320000,Social Community Care Supplies & Services  ,Care Payments,Services to People,PH-Healthcare,"2,724.00",530348,12735
21/06/2021,ZZH693538,2,3789,"P88043 Brinnington Surgery, Br",320000,Social Community Care Supplies & Services  ,Care Payments,Services to People,PH-Lifestyles,"5,198.00",530348,12737
21/06/2021,ZZH693538,3,3789,"P88043 Brinnington Surgery, Br",999999,Social Community Care Supplies & Services  ,Service Contract Payments,Services to People,PH-Sexual Health LES,"9,382.00",561704,12748
21/06/2021,ZZH693538,4,3789,"P88043 Brinnington Surgery, Br",999999,Fees and Charges,Fees and Charges,Services to People,PH-Sexual Health LES,"5,996.00",401035,12748
21/06/2021,ZZH693539,1,8922,P88042 Heald Green Health Cent,320000,Social Community Care Supplies & Services  ,Care Payments,Services to People,PH-Healthcare,"2,354.00",530348,12735
21/06/2021,ZZH693539,2,8922,P88042 Heald Green Health Cent,320000,Social Community Care Supplies & Services  ,Care Payments,Services to People,PH-Lifestyles,"1,240.00",530348,12737
21/06/2021,ZZH693539,3,8922,P88042 Heald Green Health Cent,999999,Social Community Care Supplies & Services  ,Service Contract Payments,Services to People,PH-Sexual Health LES,"1,340.00",561704,12748
21/06/2021,ZZH693539,4,8922,P88042 Heald Green Health Cent,999999,Fees and Charges,Fees and Charges,Services to People,PH-Sexual Health LES,"3,050.00",401035,12748
21/06/2021,ZZH693542,1,8928,P88031 Bracondale Medical Cent,320000,Social Community Care Supplies & Services  ,Care Payments,Services to People,PH-Healthcare,"2,070.00",530348,12735
21/06/2021,ZZH693542,2,8928,P88031 Bracondale Medical Cent,320000,Social Community Care Supplies & Services  ,Care Payments,Services to People,PH-Lifestyles,"1,489.00",530348,12737
21/06/2021,ZZH693542,3,8928,P88031 Bracondale Medical Cent,999999,Social Community Care Supplies & Services  ,Service Contract Payments,Services to People,PH-Sexual Health LES,"1,709.00",561704,12748
21/06/2021,ZZH693542,4,8928,P88031 Bracondale Medical Cent,999999,Fees and Charges,Fees and Charges,Services to People,PH-Sexual Health LES,"3,418.00",401035,12748
21/06/2021,ZZH693543,1,8914,P88026 Heaton Moor Medical Gro,320000,Social Community Care Supplies & Services  ,Care Payments,Services to People,PH-Healthcare,"16,064.00",530348,12735
21/06/2021,ZZH693543,2,8914,P88026 Heaton Moor Medical Gro,320000,Social Community Care Supplies & Services  ,Care Payments,Services to People,PH-Lifestyles,"11,382.00",530348,12737
21/06/2021,ZZH693543,3,8914,P88026 Heaton Moor Medical Gro,999999,Social Community Care Supplies & Services  ,Service Contract Payments,Services to People,PH-Sexual Health LES,"9,184.00",561704,12748
21/06/2021,ZZH693543,4,8914,P88026 Heaton Moor Medical Gro,999999,Fees and Charges,Fees and Charges,Services to People,PH-Sexual Health LES,"8,799.00",401035,12748
21/06/2021,ZZH693544,1,8921,P88025 Hulme Hall Medical Grou,320000,Social Community Care Supplies & Services  ,Care Payments,Services to People,PH-Healthcare,"4,430.00",530348,12735
21/06/2021,ZZH693544,2,8921,P88025 Hulme Hall Medical Grou,320000,Social Community Care Supplies & Services  ,Care Payments,Services to People,PH-Lifestyles,"2,094.00",530348,12737
21/06/2021,ZZH693544,3,8921,P88025 Hulme Hall Medical Grou,999999,Social Community Care Supplies & Services  ,Service Contract Payments,Services to People,PH-Sexual Health LES,"1,541.00",561704,12748
21/06/2021,ZZH693544,4,8921,P88025 Hulme Hall Medical Grou,999999,Fees and Charges,Fees and Charges,Services to People,PH-Sexual Health LES,"1,129.00",401035,12748
21/06/2021,ZZH693545,1,8960,P88023 Heald Green Health Cent,320000,Social Community Care Supplies & Services  ,Care Payments,Services to People,PH-Healthcare,"2,270.00",530348,12735
21/06/2021,ZZH693545,2,8960,P88023 Heald Green Health Cent,320000,Social Community Care Supplies & Services  ,Care Payments,Services to People,PH-Lifestyles,"1,265.00",530348,12737
21/06/2021,ZZH693545,3,8960,P88023 Heald Green Health Cent,999999,Social Community Care Supplies & Services  ,Service Contract Payments,Services to People,PH-Sexual Health LES,419.00,561704,12748
21/06/2021,ZZH693545,4,8960,P88023 Heald Green Health Cent,999999,Fees and Charges,Fees and Charges,Services to People,PH-Sexual Health LES,"2,304.00",401035,12748
21/06/2021,ZZH693546,1,8964,P88021 Marple Medical Practice,320000,Social Community Care Supplies & Services  ,Care Payments,Services to People,PH-Healthcare,"2,949.00",530348,12735
21/06/2021,ZZH693546,2,8964,P88021 Marple Medical Practice,320000,Social Community Care Supplies & Services  ,Care Payments,Services to People,PH-Lifestyles,"1,291.00",530348,12737
21/06/2021,ZZH693546,3,8964,P88021 Marple Medical Practice,999999,Social Community Care Supplies & Services  ,Service Contract Payments,Services to People,PH-Sexual Health LES,"1,826.00",561704,12748
21/06/2021,ZZH693546,4,8964,P88021 Marple Medical Practice,999999,Fees and Charges,Fees and Charges,Services to People,PH-Sexual Health LES,"1,610.00",401035,12748
21/06/2021,ZZH693547,1,8948,P88020 Cheadle Medical Practic,320000,Social Community Care Supplies & Services  ,Care Payments,Services to People,PH-Healthcare,"4,534.00",530348,12735
21/06/2021,ZZH693547,2,8948,P88020 Cheadle Medical Practic,320000,Social Community Care Supplies & Services  ,Care Payments,Services to People,PH-Lifestyles,"2,458.00",530348,12737
21/06/2021,ZZH693547,3,8948,P88020 Cheadle Medical Practic,999999,Social Community Care Supplies & Services  ,Service Contract Payments,Services to People,PH-Sexual Health LES,"1,876.00",561704,12748
21/06/2021,ZZH693547,4,8948,P88020 Cheadle Medical Practic,999999,Fees and Charges,Fees and Charges,Services to People,PH-Sexual Health LES,"6,948.00",401035,12748
21/06/2021,ZZH693548,1,8932,P88019 Woodley Health Centre A,320000,Social Community Care Supplies & Services  ,Care Payments,Services to People,PH-Healthcare,"2,073.00",530348,12735
21/06/2021,ZZH693548,2,8932,P88019 Woodley Health Centre A,320000,Social Community Care Supplies & Services  ,Care Payments,Services to People,PH-Lifestyles,"1,779.00",530348,12737
21/06/2021,ZZH693548,3,8932,P88019 Woodley Health Centre A,999999,Social Community Care Supplies & Services  ,Service Contract Payments,Services to People,PH-Sexual Health LES,"1,139.00",561704,12748
21/06/2021,ZZH693548,4,8932,P88019 Woodley Health Centre A,999999,Fees and Charges,Fees and Charges,Services to People,PH-Sexual Health LES,"1,894.00",401035,12748
21/06/2021,ZZH693549,1,8945,P88018 Park View Group Practic,320000,Social Community Care Supplies & Services  ,Care Payments,Services to People,PH-Healthcare,"3,207.00",530348,12735
21/06/2021,ZZH693549,2,8945,P88018 Park View Group Practic,320000,Social Community Care Supplies & Services  ,Care Payments,Services to People,PH-Lifestyles,"3,102.00",530348,12737
21/06/2021,ZZH693549,3,8945,P88018 Park View Group Practic,999999,Social Community Care Supplies & Services  ,Service Contract Payments,Services to People,PH-Sexual Health LES,"3,987.00",561704,12748
21/06/2021,ZZH693549,4,8945,P88018 Park View Group Practic,999999,Fees and Charges,Fees and Charges,Services to People,PH-Sexual Health LES,"5,704.00",401035,12748
21/06/2021,ZZH693550,1,8944,P88017 Chadsfield Medical Prac,320000,Social Community Care Supplies & Services  ,Care Payments,Services to People,PH-Healthcare,"2,880.00",530348,12735
21/06/2021,ZZH693550,2,8944,P88017 Chadsfield Medical Prac,320000,Social Community Care Supplies & Services  ,Care Payments,Services to People,PH-Lifestyles,"1,222.00",530348,12737
21/06/2021,ZZH693550,3,8944,P88017 Chadsfield Medical Prac,999999,Social Community Care Supplies & Services  ,Service Contract Payments,Services to People,PH-Sexual Health LES,519.00,561704,12748
21/06/2021,ZZH693550,4,8944,P88017 Chadsfield Medical Prac,999999,Fees and Charges,Fees and Charges,Services to People,PH-Sexual Health LES,"1,443.00",401035,12748
21/06/2021,ZZH693551,1,8952,ann.smith24@nhs.net,320000,Social Community Care Supplies & Services  ,Care Payments,Services to People,PH-Healthcare,"5,378.00",530348,12735
21/06/2021,ZZH693551,2,8952,ann.smith24@nhs.net,320000,Social Community Care Supplies & Services  ,Care Payments,Services to People,PH-Lifestyles,"3,663.00",530348,12737
21/06/2021,ZZH693551,3,8952,ann.smith24@nhs.net,999999,Social Community Care Supplies & Services  ,Service Contract Payments,Services to People,PH-Sexual Health LES,"2,329.00",561704,12748
21/06/2021,ZZH693551,4,8952,ann.smith24@nhs.net,999999,Fees and Charges,Fees and Charges,Services to People,PH-Sexual Health LES,"3,316.00",401035,12748
21/06/2021,ZZH693552,1,8949,P88015 Bramhall Health Centre,320000,Social Community Care Supplies & Services  ,Care Payments,Services to People,PH-Healthcare,"5,102.00",530348,12735
21/06/2021,ZZH693552,2,8949,P88015 Bramhall Health Centre,320000,Social Community Care Supplies & Services  ,Care Payments,Services to People,PH-Lifestyles,"1,918.00",530348,12737
21/06/2021,ZZH693554,1,8947,P88013 Caritas General Practic,320000,Social Community Care Supplies & Services  ,Care Payments,Services to People,PH-Healthcare,"5,196.00",530348,12735
21/06/2021,ZZH693554,2,8947,P88013 Caritas General Practic,320000,Social Community Care Supplies & Services  ,Care Payments,Services to People,PH-Lifestyles,"3,056.00",530348,12737
21/06/2021,ZZH693554,3,8947,P88013 Caritas General Practic,999999,Social Community Care Supplies & Services  ,Service Contract Payments,Services to People,PH-Sexual Health LES,"4,521.00",561704,12748
21/06/2021,ZZH693554,4,8947,P88013 Caritas General Practic,999999,Fees and Charges,Fees and Charges,Services to People,PH-Sexual Health LES,"4,296.00",401035,12748
21/06/2021,ZZH693555,1,8950,P88012 Beech House Medical Pra,320000,Social Community Care Supplies & Services  ,Care Payments,Services to People,PH-Healthcare,"3,233.00",530348,12735
21/06/2021,ZZH693555,2,8950,P88012 Beech House Medical Pra,320000,Social Community Care Supplies & Services  ,Care Payments,Services to People,PH-Lifestyles,"1,911.00",530348,12737
21/06/2021,ZZH693555,3,8950,P88012 Beech House Medical Pra,999999,Social Community Care Supplies & Services  ,Service Contract Payments,Services to People,PH-Sexual Health LES,"2,697.00",561704,12748
21/06/2021,ZZH693555,4,8950,P88012 Beech House Medical Pra,999999,Fees and Charges,Fees and Charges,Services to People,PH-Sexual Health LES,"2,467.00",401035,12748
21/06/2021,ZZH693556,1,8963,P88011 Heaton Norris Health Ce,320000,Social Community Care Supplies & Services  ,Care Payments,Services to People,PH-Healthcare,"2,803.00",530348,12735
21/06/2021,ZZH693556,2,8963,P88011 Heaton Norris Health Ce,320000,Social Community Care Supplies & Services  ,Care Payments,Services to People,PH-Lifestyles,"3,304.00",530348,12737
21/06/2021,ZZH693556,3,8963,P88011 Heaton Norris Health Ce,999999,Social Community Care Supplies & Services  ,Service Contract Payments,Services to People,PH-Sexual Health LES,"2,044.00",561704,12748
21/06/2021,ZZH693556,4,8963,P88011 Heaton Norris Health Ce,999999,Fees and Charges,Fees and Charges,Services to People,PH-Sexual Health LES,"2,994.00",401035,12748
21/06/2021,ZZH693558,1,8942,P88008 Heaton Mersey Medical P,320000,Social Community Care Supplies & Services  ,Care Payments,Services to People,PH-Healthcare,"3,130.00",530348,12735
21/06/2021,ZZH693558,2,8942,P88008 Heaton Mersey Medical P,320000,Social Community Care Supplies & Services  ,Care Payments,Services to People,PH-Lifestyles,"1,505.00",530348,12737
21/06/2021,ZZH693558,3,8942,P88008 Heaton Mersey Medical P,999999,Social Community Care Supplies & Services  ,Service Contract Payments,Services to People,PH-Sexual Health LES,"1,324.00",561704,12748
21/06/2021,ZZH693558,4,8942,P88008 Heaton Mersey Medical P,999999,Fees and Charges,Fees and Charges,Services to People,PH-Sexual Health LES,131.00,401035,12748
21/06/2021,ZZH693559,1,8933,P88007 Cheadle Hulme Health Ce,320000,Social Community Care Supplies & Services  ,Care Payments,Services to People,PH-Healthcare,"5,329.00",530348,12735
21/06/2021,ZZH693559,2,8933,P88007 Cheadle Hulme Health Ce,320000,Social Community Care Supplies & Services  ,Care Payments,Services to People,PH-Lifestyles,"2,078.00",530348,12737
21/06/2021,ZZH693559,3,8933,P88007 Cheadle Hulme Health Ce,999999,Social Community Care Supplies & Services  ,Service Contract Payments,Services to People,PH-Sexual Health LES,"3,213.00",561704,12748
21/06/2021,ZZH693559,4,8933,P88007 Cheadle Hulme Health Ce,999999,Fees and Charges,Fees and Charges,Services to People,PH-Sexual Health LES,"3,232.00",401035,12748
21/06/2021,ZZH693560,1,8956,P88005 The Family Surgery,320000,Social Community Care Supplies & Services  ,Care Payments,Services to People,PH-Healthcare,"4,226.00",530348,12735
21/06/2021,ZZH693560,2,8956,P88005 The Family Surgery,320000,Social Community Care Supplies & Services  ,Care Payments,Services to People,PH-Lifestyles,"4,331.00",530348,12737
21/06/2021,ZZH693561,1,8926,P88003 Manor Medical Practice,320000,Social Community Care Supplies & Services  ,Care Payments,Services to People,PH-Healthcare,"3,523.00",530348,12735
21/06/2021,ZZH693561,2,8926,P88003 Manor Medical Practice,320000,Social Community Care Supplies & Services  ,Care Payments,Services to People,PH-Lifestyles,"3,012.00",530348,12737
21/06/2021,ZZH693561,3,8926,P88003 Manor Medical Practice,999999,Social Community Care Supplies & Services  ,Service Contract Payments,Services to People,PH-Sexual Health LES,"1,960.00",561704,12748
21/06/2021,ZZH693561,4,8926,P88003 Manor Medical Practice,999999,Fees and Charges,Fees and Charges,Services to People,PH-Sexual Health LES,"3,386.00",401035,12748
21/06/2021,ZZH693571,1,8957,P88632 Stockport Medical Group,320000,Social Community Care Supplies & Services  ,Care Payments,Services to People,PH-Healthcare,"5,540.00",530348,12735
21/06/2021,ZZH693571,2,8957,P88632 Stockport Medical Group,320000,Social Community Care Supplies & Services  ,Care Payments,Services to People,PH-Lifestyles,"5,815.00",530348,12737
21/06/2021,ZZH693571,3,8957,P88632 Stockport Medical Group,999999,Social Community Care Supplies & Services  ,Service Contract Payments,Services to People,PH-Sexual Health LES,"9,600.00",561704,12748
21/06/2021,ZZH693571,4,8957,P88632 Stockport Medical Group,999999,Fees and Charges,Fees and Charges,Services to People,PH-Sexual Health LES,"10,094.00",401035,12748
21/06/2021,ZZH693573,1,8930,P88625 Woodley Health Centre -,320000,Social Community Care Supplies & Services  ,Care Payments,Services to People,PH-Healthcare,"3,273.00",530348,12735
21/06/2021,ZZH693573,2,8930,P88625 Woodley Health Centre -,320000,Social Community Care Supplies & Services  ,Care Payments,Services to People,PH-Lifestyles,"2,261.00",530348,12737
21/06/2021,ZZH693573,3,8930,P88625 Woodley Health Centre -,999999,Social Community Care Supplies & Services  ,Service Contract Payments,Services to People,PH-Sexual Health LES,"2,161.00",561704,12748
21/06/2021,ZZH693573,4,8930,P88625 Woodley Health Centre -,999999,Fees and Charges,Fees and Charges,Services to People,PH-Sexual Health LES,987.00,401035,12748
22/06/2021,ZZH693594,1,13551,Permanent Futures Ltd,150000,Consultancy   ,Professional Fees,Services to People,SEN Trans-Staffing,"13,750.00",401007,10759
22/06/2021,ZZH693595,1,11009,Nisai Virtual Academy Ltd,261500,Human Resources Training & Conferences ,Fees and Charges,Services to People,SEN Specific support,"20,000.00",401024,10300
22/06/2021,ZZH693621,1,9761,Sheffield Teaching Hospital NH,220000,Health & Safety�  ,Fees and Charges,Corporate and Support Services,U-Coroners Ct-Genera,"5,000.00",401000,10965
22/06/2021,ZZH693632,1,14412,HB Aluminium Fabrications Ltd,390000,"Works - Construction, Repair & Maintenance  ",Repairs and Maintenance,#N/A,#N/A,"26,850.75",200123,C.00405
22/06/2021,ZZH693636,1,6870,KIDS,150000,Consultancy   ,Professional Fees,Services to People,SEN-Parent Partnersh,"54,000.00",401020,10316
22/06/2021,ZZH693637,1,1722,The Together Trust Centre,150000,Consultancy   ,Professional Fees,Services to People,SEN-Parent Partnersh,"90,000.00",401020,10316
23/06/2021,ZZH693657,1,6117,QA Research,150000,Consultancy   ,Professional Fees,#N/A,#N/A,"24,950.00",401020,C.10971
23/06/2021,ZZH693658,1,13428,GT 3 Architects Ltd,150000,Consultancy   ,Professional Fees,Services to Place,Sports Trust,"47,700.00",401020,11294
23/06/2021,ZZH693659,1,12533,Priory Group - Northern Office,310000,Healthcare  ,Third party payments - Public Sector,Services to People,Hospital Tuition,"3,036.00",500402,10370
23/06/2021,ZZH693659,2,12533,Priory Group - Northern Office,310000,Healthcare  ,Third party payments - Public Sector,Services to People,Hospital Tuition,"3,128.00",500402,10370
23/06/2021,ZZH693659,3,12533,Priory Group - Northern Office,310000,Healthcare  ,Third party payments - Public Sector,Services to People,Hospital Tuition,736.00,500402,10370
23/06/2021,ZZH693679,1,14382,Claire Crane,340000,Stationery    ,Office Expenses,Services to People,PH-Health Protection,"5,000.00",400707,12739
23/06/2021,ZZH693687,1,6748,GEORGE COX & SONS LTD,390000,Supplies and services,Supplies and services,Services to Place,Highway Structs R+R,"9,780.76",401600,11975
24/06/2021,ZZH693708,1,3303,Family Rights Group,150000,Consultancy   ,Professional Fees,Services to People,SC - Family Group Me,"5,000.00",401020,11490
24/06/2021,ZZH693712,1,1900,Broxap Ltd,181800,Environmental Services Technical Equipment ,Furniture and Equipment,Services to Place,Memorial Benches,"8,925.00",400110,11279
24/06/2021,ZZH693712,2,1900,Broxap Ltd,181800,Environmental Services Technical Equipment ,Furniture and Equipment,Services to Place,Memorial Benches,565.00,400110,11279
24/06/2021,ZZH693713,1,10716,Pure Insight 1628 Ltd,150000,Consultancy   ,Professional Fees,Services to People,SC - Leaving Care,"47,400.00",401020,11501
24/06/2021,ZZH693724,1,14690,Be the Best Communications Lim,150000,Consultancy   ,Professional Fees,#N/A,#N/A,"29,920.00",401020,C.10971
24/06/2021,ZZH693726,1,10867,ABL Health Ltd,310000,Healthcare  ,Third party payments - Public Sector,Services to People,PH-Lifestyles,"140,676.00",500402,12737
24/06/2021,ZZH693736,1,433,Mott MacDonald Ltd,150000,Consultancy   ,Professional Fees,Services to Place,Invest in Growth,"30,000.00",401007,10091
24/06/2021,ZZH693740,1,3529,Totally Local Company Ltd,390000,"Works - Construction, Repair & Maintenance  ",Capital Expenditure - Works,#N/A,#N/A,"187,426.59",200304,C.01284.203
24/06/2021,ZZH693746,1,12182,Ladybird Childcare Brinnington,150000,Consultancy   ,Professional Fees,Services to People,EPEC Programme,"9,500.00",401007,13037
25/06/2021,ZZH693751,1,1339,Stockport NHS Foundation Trust,190000,Facilities & Management Services  ,Publicity and Promotion,Services to People,PH-Lifestyles,"18,800.00",401802,12737
25/06/2021,ZZH693755,1,3529,Totally Local Company Ltd,390000,Supplies and services,Supplies and services,#N/A,#N/A,"11,127.03",401600,C.01312.203
25/06/2021,ZZH693761,1,6748,GEORGE COX & SONS LTD,390000,Supplies and services,Supplies and services,#N/A,#N/A,"6,077.50",401600,C.01221.203
25/06/2021,ZZH693774,1,2816,The Fostering Network,150000,Consultancy   ,Professional Fees,Services to People,FP - Fostering Staff,"10,672.00",401020,11489
25/06/2021,ZZH693787,1,14695,Deborah Stuart Angus t/a Asses,261500,Human Resources Training & Conferences ,Expenses and Allowances,Services to People,SA Board,"12,179.90",402201,12825
25/06/2021,ZZH693790,1,3750,TheNational Trust(Enterprises),150000,Consultancy   ,Professional Fees,Services to Place,U-Lyme Park & Hall,"942,074.00",401007,11379
25/06/2021,ZZH693792,1,2104,Central Manchester University,310000,Healthcare  ,Third party payments - Public Sector,Services to People,PH-Sexual Health,"3,990,212.50",500401,12736
28/06/2021,ZZH693804,1,2104,Central Manchester University,202000,Financial Services Rents ,Rents,Services to People,PH-Sexual Health,"379,163.06",200700,12736
28/06/2021,ZZH693805,1,11820,NHS BUSINESS SERVICES AUTHORIT,999999,Fees and Charges,Fees and Charges,Services to People,PH-Drug & Alcohol,"363,500.00",401035,12731
28/06/2021,ZZH693813,1,6748,GEORGE COX & SONS LTD,390000,"Works - Construction, Repair & Maintenance  ",Capital Expenditure - Works,#N/A,#N/A,"97,426.12",200304,C.10523.193
28/06/2021,ZZH693818,1,11897,SENSE CAS FINANCE TEAM,320000,Social Community Care Supplies & Services  ,Care Payments,Services to People,DP - Respite,"17,576.00",530335,11513
28/06/2021,ZZH693830,1,2816,The Fostering Network,150000,Consultancy   ,Professional Fees,Services to People,FP - Fostering Staff,"7,000.00",401020,11489
29/06/2021,ZZH693884,1,683,AECOM Limited,150000,Consultancy   ,Professional Fees,#N/A,#N/A,"7,377.40",401007,C.01221.203
29/06/2021,ZZH693885,1,3529,Totally Local Company Ltd,390000,"Works - Construction, Repair & Maintenance  ",Capital Expenditure - Works,#N/A,#N/A,"16,347.43",200304,C.01284.203
29/06/2021,ZZH693902,1,35,CBC Computer Systems Ltd,270000,Information Communication Technology  ,Information and Communications Technology,Services to People,RAA Adoption Count,"3,204.75",402001,12957
29/06/2021,ZZH693902,2,35,CBC Computer Systems Ltd,270000,Information Communication Technology  ,Information and Communications Technology,Services to People,RAA Adoption Count,"4,485.00",402001,12957
30/06/2021,ZZH693931,1,10798,Cludo UK Ltd,270000,Information Communication Technology  ,Information and Communications Technology,Corporate and Support Services,IT Systems,"7,000.00",402002,12503
30/06/2021,ZZH693960,1,7908,Sefton Council.,381600,Vehicle Management Hire/Leasing ,Leasing /Transport Hire,Services to People,SHV CSC Locality Lea,"16,632.00",300302,11514
30/06/2021,ZZH693963,1,8106,Tarmac Trading Ltd,390000,Supplies and services,Supplies and services,#N/A,#N/A,"27,353.90",401600,C.01368.203
30/06/2021,ZZH693967,1,3529,Totally Local Company Ltd,390000,"Works - Construction, Repair & Maintenance  ",Capital Expenditure - Works,#N/A,#N/A,"41,417.76",200304,C.00403
30/06/2021,ZZH693968,1,14669,Sapphire Utility Solutions Ltd,391114,"Works - Construction, Repair & Maintenance Buildings Surveys",Capital Expenditure - Fees,#N/A,#N/A,"9,984.00",200316,C.01313.202
19/04/2021,ZZP690820,1,14627,Newards Limited,390000,"Works - Construction, Repair & Maintenance  ",Capital Expenditure - Works,#N/A,#N/A,"5,304.00",200311,C.10382.184
07/05/2021,ZZP691732,1,2438,J Greenwood (Builders) Ltd,391114,"Works - Construction, Repair & Maintenance Buildings Surveys",Capital Expenditure - Fees,#N/A,#N/A,"5,000.00",200316,C.10425.242
13/05/2021,ZZP692030,1,7648,Kier Construction Limited,390000,"Works - Construction, Repair & Maintenance  ",Repairs and Maintenance,#N/A,#N/A,"40,079.10",200123,C.10423.184
20/05/2021,ZZP692282,1,14656,JW Civils,390000,"Works - Construction, Repair & Maintenance  ",Repairs and Maintenance,#N/A,#N/A,"10,961.80",200123,C.10423.184
24/05/2021,ZZP692387,1,14660,Global Action Plan,150000,Consultancy   ,Professional Fees,Services to Place,Property Client Acct,"19,150.00",401020,12328
24/05/2021,ZZP692388,1,3529,Totally Local Company Ltd,390000,"Works - Construction, Repair & Maintenance  ",Repairs and Maintenance,Services to Place,SPB Operational Est.,"9,000.00",200123,11662
24/05/2021,ZZP692415,1,220,Myers Tree Care Ltd,390000,"Works - Construction, Repair & Maintenance  ",Repairs and Maintenance,#N/A,#N/A,"5,688.00",200123,C.10423.184
27/05/2021,ZZP692585,1,7506,Angel Springs Ltd t/a Waterlog,181800,Environmental Services Technical Equipment ,Furniture and Equipment,Services to Place,SPB Operational Est.,"10,314.88",400110,11662
17/06/2021,ZZP693393,1,2356,Clancy Consulting Ltd,390000,"Works - Construction, Repair & Maintenance  ",Repairs and Maintenance,#N/A,#N/A,"5,000.00",200123,C.10335.118
